Workbook

Sheet Grupo_1
B2: PROJETO PONTAL - ÁREA NORTE
B3: MANCHA 20 e 23
B4: Infraestrutura
B5: Grupo 1
B6: ITEM | C6: CATMAT | D6: DESCRIÇÃO | E6: UNID. | F6: QUANTID. | G6: PREÇO UNIT. | H6: PREÇO TOTAL | I6: Des. Referencia | J6: Especificação
D7: DESCARGA DE FUNDO E CAIXA DE VENTOSA SF1, SF2, TR3 E TR4 e BIFURCAÇÃO - TUBULAÇÃO DE RECALQUE - TR03
B8: 1 | C8: 479299 | D8: VÁLVULA. GAVETA, FERRO DUCTIL, ACIONAMENTO DIRETO C/VOLANTE, PN-10, DN= 300 MM, COMPLETA COM TODOS OS ACESSÓRIOS PARA MONTAGEM | E8: un | F8: 3 | G8: 5414.57 | H8: =F8*G8 -> 16243.71 | I8: 3PN-52-0101/0102/0103/ 0104/0111/0112/0117 E 3PN-52-0201/0202/0203/ 0204/0205/0206 | J8: 3PN-ET-TR-006-R2 3PN-ET-CON-017-R2 3PN-ET-TR-006-R0
B9: 2 | C9: 480675 | D9: JUNTA DE MONTAGEM TIPO GIBAULT, DN=300 MM, CORPO E FLANGES EM FERRO FUNDIDO, COMPLETA COM TIRANTES , PORCAS E VEDAÇÃO | E9: un | F9: 3 | G9: 1178.34 | H9: =F9*G9 -> 3535.02 | I9: 3PN-52-0101/0102/0103/ 0104/0111/0112/0117 E 3PN-52-0201/0202/0203/ 0204/0205/0206 | J9: 3PN-ET-TR-006-R2 3PN-ET-CON-017-R2 3PN-ET-TR-006-R0
B10: 3 | C10: 480675 | D10: CURVA DE 90° EM FERRO DUCTIL, DN 300 MM, COM FLANGES PN 10 COMPLETA COM VEDAÇÃO E ACESSÓRIOS | E10: un | F10: 3 | G10: 2796.47 | H10: 8389.41 | I10: 3PN-52-0101/0102/0103/ 0104/0111/0112/0117 | J10: 3PN-ET-TR-006-R2 3PN-ET-CON-017-R2 3PN-ET-TR-006-R0
B11: 4 | C11: 480675 | D11: TUBO FERRO DUCTIL COM FLANGES PN 10, DN 300 MM, K9, COMPRIMENTO 1,28 M, COMPLETA COM VEDAÇÃO E ACESSÓRIOS | E11: un | F11: 1 | G11: 3238.37 | H11: 3238.37 | I11: 3PN-52-0201/0202/0203/ 0204/0205/0206 | J11: 3PN-ET-TR-006-R2 3PN-ET-CON-017-R2 3PN-ET-TR-006-R0
B12: 5 | C12: 480675 | D12: TUBO FERRO DUCTIL COM FLANGES PN 10, K9, DN 300 MM, COMPRIMENTO 1,20 M COMPLETA COM VEDAÇÃO E ACESSÓRIOS | E12: un | F12: 1 | G12: 3460.69 | H12: 3460.69 | I12: 3PN-52-0101/0102/0103/ 0104/0111/0112/0117 | J12: 3PN-ET-TR-006-R2 3PN-ET-CON-017-R2 3PN-ET-TR-006-R0
B13: 6 | C13: 480675 | D13: TUBO FERRO DUCTIL COM FLANGES PN 10, K9, DN 300 MM, COMPRIMENTO 3,60 M COMPLETA COM VEDAÇÃO E ACESSÓRIOS | E13: un | F13: 1 | G13: 6383.48 | H13: 6383.48 | I13: 3PN-52-0101/0102/0103/ 0104/0111/0112/0117 | J13: 3PN-ET-TR-006-R2 3PN-ET-CON-017-R2 3PN-ET-TR-006-R0
B14: 7 | C14: 480675 | D14: CURVA DE 45° EM FERRO DUCTIL, DN 300 MM, COM FLANGES PN 10 COMPLETA COM VEDAÇÃO E ACESSÓRIOS | E14: un | F14: 2 | G14: 2550.55 | H14: 5101.1 | I14: 3PN-52-0101/0102/0103/ 0104/0111/0112/0117 | J14: 3PN-ET-TR-006-R2 3PN-ET-CON-017-R2 3PN-ET-TR-006-R0
B15: 8 | C15: 480675 | D15: JUNÇÃO DE 45° EM FERRO DUCTIL, DN 300 MM, COM FLANGES PN 10 COMPLETA COM VEDAÇÃO E ACESSÓRIOS | E15: un | F15: 1 | G15: 5152.34 | H15: 5152.34 | I15: 3PN-52-0101/0102/0103/ 0104/0111/0112/0117 | J15: 3PN-ET-TR-006-R2 3PN-ET-CON-017-R2 3PN-ET-TR-006-R0
B16: 9 | C16: 480675 | D16: EXTREMIDADE FERRO DUCTIL, K9, FLANGE PN 10 E BOLSA JUNTA ELASTICA, DN=300 MM, COMPRIMENTO 500 MM COMPLETA COM VEDAÇÃO E ACESSÓRIOS | E16: un | F16: 1 | G16: 1657.35 | H16: 1657.35 | I16: 3PN-52-0101/0102/0103/ 0104/0111/0112/0117 | J16: 3PN-ET-TR-006-R2 3PN-ET-CON-017-R2 3PN-ET-TR-006-R0
B17: 10 | C17: 480675 | D17: EXTREMIDADE FERRO DUCTIL, K9, FLANGE PN 10 E PONTA JUNTA ELASTICA, DN=300 MM, COMPRIMENTO 440 MM COMPLETA COM VEDAÇÃO E ACESSÓRIOS | E17: un | F17: 2 | G17: 1469.06 | H17: 2938.12 | I17: 3PN-52-0101/0102/0103/ 0104/0111/0112/0117 | J17: 3PN-ET-TR-006-R2 3PN-ET-CON-017-R2 3PN-ET-TR-006-R0
B18: 11 | C18: 480675 | D18: TUBO FERRO DUCTIL COM PONTA E FLANGE PN 10, K9, DN 300 MM, COMPRIMENTO 1,96 M COMPLETA COM VEDAÇÃO E ACESSÓRIOS | E18: un | F18: 1 | G18: 3835.27 | H18: 3835.27 | I18: 3PN-52-0101/0102/0103/ 0104/0111/0112/0117 | J18: 3PN-ET-TR-006-R2 3PN-ET-CON-017-R2 3PN-ET-TR-006-R0
B19: 12 | C19: 480675 | D19: TUBO FERRO DUCTIL COM PONTA E FLANGE PN 10, K9, DN 300 MM, COMPRIMENTO 750MM COMPLETA COM VEDAÇÃO E ACESSÓRIOS | E19: un | F19: 1 | G19: 2009.59 | H19: 2009.59 | I19: 3PN-52-0101/0102/0103/ 0104/0111/0112/0117 | J19: 3PN-ET-TR-006-R2 3PN-ET-CON-017-R2 3PN-ET-TR-006-R0
B20: 13 | C20: 480675 | D20: EXTREMIDADE FERRO DUCTIL, K9, FLANGE PN 10 E BOLSA JUNTA ELASTICA, DN=300 MM, COMPRIMENTO 100 MM COMPLETA COM VEDAÇÃO E ACESSÓRIOS | E20: un | F20: 1 | G20: 1207.83 | H20: 1207.83 | I20: 3PN-52-0101/0102/0103/ 0104/0111/0112/0117 | J20: 3PN-ET-TR-006-R2 3PN-ET-CON-017-R2 3PN-ET-TR-006-R0
B21: 14 | C21: 480675 | D21: TUBO FERRO DUCTIL COM PONTA E BOLSA PN 10, DN 300 MM, K9, COMPRIMENTO 780 MM, COMPLETA COM VEDAÇÃO E ACESSÓRIOS | E21: un | F21: 1 | G21: 1097.25 | H21: 1097.25 | I21: 3PN-52-0201/0202/0203/ 0204/0205/0206 | J21: 3PN-ET-TR-006-R2 3PN-ET-CON-017-R2 3PN-ET-TR-006-R0
B22: 15 | C22: 480675 | D22: EXTREMIDADE FERRO DUCTIL, K9, FLANGE PN 10 E PONTA JUNTA ELASTICA, DN=300 MM, COMPRIMENTO 570 MM COMPLETA COM VEDAÇÃO E ACESSÓRIOS | E22: un | F22: 1 | G22: 1570.41 | H22: 1570.41 | I22: 3PN-52-0201/0202/0203/ 0204/0205/0206 | J22: 3PN-ET-TR-006-R2 3PN-ET-CON-017-R2 3PN-ET-TR-006-R0
B23: 16 | C23: 392066 | D23: VENTOSA DE ALTO DESEMPENHO, COM ATUADOR CINETICO, TRIPLICE FUNÇÃO, EM FERRO DUCTIL, DN=150 MM, FLANGE PN 10, COMPLETA COM TODOS OS ACESSÓRIOS PARA MONTAGEM | E23: un | F23: 4 | G23: 5986.3 | H23: 23945.2 | I23: 3PN-45-1000/1001/1008/1010 | J23: 3PN-ET-TR-006-R2 3PN-ET-CON-017-R2 3PN-ET-TR-006-R0
B24: 17 | C24: 392066 | D24: VENTOSA DE ALTO DESEMPENHO, COM ATUADOR CINETICO, TRIPLICE FUNÇÃO, EM FERRO DUCTIL, DN=75 MM, FLANGE PN 10, COMPLETA COM TODOS OS ACESSÓRIOS PARA MONTAGEM | E24: un | F24: 2 | G24: 2607.61 | H24: 5215.22 | I24: 3PN-45-1000/1001/1008/1010 | J24: 3PN-ET-TR-006-R2 3PN-ET-CON-017-R2 3PN-ET-TR-006-R0
B25: 18 | C25: 479299 | D25: VÁLVULA GAVETA EM FERRO DUCTIL, ACIONAMENTO DIRETO POR VOLANTE, COM FLANGES PN-10, DN=150 MM, COMPLETA COM TODOS OS ACESSÓRIOS PARA MONTAGEM | E25: un | F25: 4 | G25: 2010.24 | H25: 8040.96 | I25: 3PN-45-1000/1001/1008/1010 | J25: 3PN-ET-TR-006-R2 3PN-ET-CON-017-R2 3PN-ET-TR-006-R0
B26: 19 | C26: 479299 | D26: VÁLVULA GAVETA EM FERRO DUCTIL, ACIONAMENTO DIRETO POR VOLANTE, COM FLANGES PN-10, DN=75 MM, COMPLETA COM TODOS OS ACESSÓRIOS PARA MONTAGEM | E26: un | F26: 2 | G26: 1124.32 | H26: 2248.64 | I26: 3PN-45-1000/1001/1008/1010 | J26: 3PN-ET-TR-006-R2 3PN-ET-CON-017-R2 3PN-ET-TR-006-R0
B27: 20 | C27: 479299 | D27: VÁLVULA GAVETA EM FERRO DUCTIL, ACIONAMENTO DIRETO POR VOLANTE, COM FLANGES PN-10, DN=100 MM | E27: un | F27: 2 | G27: 1188.61 | H27: 2377.22 | I27: 3PN-45-3001/3002 | J27: 3PN-ET-TR-006-R2 3PN-ET-CON-017-R2 3PN-ET-TR-006-R0
B28: 21 | C28: 479299 | D28: VÁLVULA GAVETA EM FERRO DUCTIL, ACIONAMENTO DIRETO POR VOLANTE, COM FLANGES PN-10, DN=100 MM, COMPLETA COM TODOS OS ACESSÓRIOS PARA MONTAGEM | E28: un | F28: 2 | G28: 1371.7 | H28: 2743.4 | I28: 3PN-45-1000/1001/1005/1009 | J28: 3PN-ET-TR-006-R2 3PN-ET-CON-017-R2 3PN-ET-TR-006-R0
B29: 22 | C29: 392066 | D29: VENTOSA DE ALTO DESEMPENHO, COM ATUADOR CINETICO, TRIPLICE FUNÇÃO, EM FERRO DUCTIL, DN100 MM, FLANGE PN 10, COMPLETA COM TODOS OS ACESSÓRIOS PARA MONTAGEM | E29: un | F29: 4 | G29: 3482.69 | H29: 13930.76 | I29: 3PN-45-1000/1001/1005/1009 e 3PN-45-3001/3002 | J29: 3PN-ET-TR-006-R2 3PN-ET-CON-017-R2 3PN-ET-TR-006-R0
D30: TOTAL | H30: =SUM(H8:H29) -> 124321.34

Sheet Item_23
B2: PROJETO PONTAL - ÁREA NORTE
B3: MANCHA 20 e 23
B4: Infraestrutura
B5: ITEM | C5: CATMAT | D5: DESCRIÇÃO | E5: UNID. | F5: QUANTID. | G5: PREÇO UNIT. | H5: PREÇO TOTAL | I5: Des. Referencia | J5: Especificação
D6: DESCARGA DE FUNDO E CAIXA DE VENTOSA SF1, SF2, TR3 E TR4
D7: TUBULAÇÃO DE RECALQUE - TR03
D8: TUBOS E PEÇAS ESPECIAIS DO ALIMENTADOR E EXTRAVASOR DO "ONE-WAY"
B9: 23 | C9: 451501 | D9: TUBO PVC RIGIDO, JUNTA ELASTICA, DE FOFO, DIAM 300 MM, PN10. Complat com todos os acessórios | E9: m | F9: =500+300+300 -> 1100 | G9: 452.37 | H9: =F9*G9 -> 497607 | I9: 3PN-52-0101/0102/0103/ 0104/0111/0112/0117 E 3PN-52-0201/0202/0203/ 0204/0205/0206 | J9: 3PN-ET-TR-006-R2 3PN-ET-CON-017-R2 3PN-ET-TR-006-R0
D10: TOTAL

Sheet RESUMO - CIVIL (hidden)
A1: ORÇAMENTO DO PROJETO PONTAL - ÁREA NORTE RESUMO - OBRAS CIVIS
A2: ITEM | B2: CÓDIGO | C2: FONTE | D2: DESCRIÇÃO NOVA(SINAPI/SICRO/COMPOSIÇÃO) | E2: DESCRIÇÃO ANTIGA(projeto) | F2: UNID. | G2: QUANTID. M20 | H2: QUANTID. M23 | I2: QUANTID. TOTAL | J2: PREÇO UNIT. S/BDI | K2: PREÇO UNIT. C/BDI | L2: PREÇO TOTAL | N2: BDI = | O2: 1.18
A3: 1 | B3: OBRAS CIVIS
A4: 1.1.1 | B4: 74254/001 | C4: SINAPI | D4: ARMACAO ACO CA-50 DIAM.16,0 (5/8) À 25,0MM (1) - FORNECIMENTO/ CORTE(PERDA DE 10%) / DOBRA / COLOCAÇÃO. | F4: kg | G4: =SUMIF(#REF!,'RESUMO - CIVIL'!B4,#REF!) ->  | H4: =SUMIF(#REF!,'RESUMO - CIVIL'!B4,#REF!) ->  | I4: =G4+H4 ->  | J4: 5.72 | K4: =J4*$O$2 -> 6.7496 | L4: =K4*I4 ->  | N4: =K4*G4 ->  | O4: =K4*H4 -> 
A5: 1.1.1 | B5: 74254/002 | C5: SINAPI | D5: ARMACAO ACO CA-50, DIAM. 6,3 (1/4) À 12,5MM(1/2) -FORNECIMENTO/ CORTE (PERDA DE 10%) / DOBRA / COLOCAÇÃO. | F5: kg | G5: =SUMIF(#REF!,'RESUMO - CIVIL'!B5,#REF!) ->  | H5: =SUMIF(#REF!,'RESUMO - CIVIL'!B5,#REF!) ->  | I5: =G5+H5 ->  | J5: 6.41 | K5: =J5*$O$2 -> 7.5638 | L5: =K5*I5 ->  | N5: =K5*G5 ->  | O5: =K5*H5 -> 
A6: 1.1.2 | B6: 73998/006 | C6: SINAPI | D6: ALVENARIA DE BLOCOS DE CONCRETO ESTRUTURAL 19X19X39CM, ESPESSURA 19CM, ASSENTADOS COM ARGAMASSA TRACO 1:0,25:4 (CIMENTO, CAL E AREIA) | E6: ALVENARIA DE BLOCOS DE CONCRETO - 19x19x39cm | F6: m² | G6: =SUMIF(#REF!,'RESUMO - CIVIL'!B6,#REF!) ->  | H6: =SUMIF(#REF!,'RESUMO - CIVIL'!B6,#REF!) ->  | J6: 59.26 | K6: 69.9268
A7: 1.1.4 | B7: 73468 | C7: SINAPI | D7: ARGAMASSA CIMENTO/AREIA 1:3 - PREPARO MECANICO | E7: ARGAMASSA DE CIMENTO AREIA 1:3 | F7: m³ | G7: =SUMIF(#REF!,'RESUMO - CIVIL'!B7,#REF!) ->  | H7: =SUMIF(#REF!,'RESUMO - CIVIL'!B7,#REF!) ->  | J7: 339.42 | K7: 400.5156
A8: 1.1.5 | B8: C.P.U.001 | D8: ATERRO COMPACTADO MECANICAMICAMENTE EM CAMADAS DE 20CM, C/CONT., MAT. JAZIDA, C/T ATE 1000 m - 95% PN | E8: ATERRO COMPACTADO MECANICAM., C/CONT., MAT. JAZIDA, C/T ATE 1000 m - 95% PN | F8: m³ | G8: =SUMIF(#REF!,'RESUMO - CIVIL'!B8,#REF!) ->  | H8: =SUMIF(#REF!,'RESUMO - CIVIL'!B8,#REF!) ->  | J8: =#REF! -> 
A9: 1.1.9 | B9: 74199/001 | C9: SINAPI | D9: CHAPISCO RUSTICO TRACO 1:3 (CIMENTO E AREIA), ESPESSURA 2CM, PREPARO MANUAL | E9: CHAPISCO | F9: m² | G9: =SUMIF(#REF!,'RESUMO - CIVIL'!B9,#REF!) ->  | H9: =SUMIF(#REF!,'RESUMO - CIVIL'!B9,#REF!) ->  | J9: 23.62 | K9: 27.8716
A10: 1.1.10 | B10: 73685 | C10: SINAPI | D10: CIMBRAMENTO DE MADEIRA | E10: CIMBRAMENTO | F10: m³ | G10: =SUMIF(#REF!,'RESUMO - CIVIL'!B10,#REF!) ->  | H10: =SUMIF(#REF!,'RESUMO - CIVIL'!B10,#REF!) ->  | J10: 25.95 | K10: 30.621
A11: 1.1.11 | B11: 73634 | C11: SINAPI | D11: COBERTURA COM TELHA DE FIBROCIMENTO ESTRUTURAL LARGURA ÚTIL 49CM OU 44CM, INCLUSO ACESSÓRIOS DE FIXAÇÃO E VEDAÇÃO | E11: COBERTURA CIMENTO AMIANTO TIPO CANALETE C/ENGRADAM., ACESSÓRIOS | F11: m² | G11: =SUMIF(#REF!,'RESUMO - CIVIL'!B11,#REF!) ->  | H11: =SUMIF(#REF!,'RESUMO - CIVIL'!B11,#REF!) ->  | J11: 86.95 | K11: 102.601
A12: 1.1.12 | B12: 6105 | C12: SINAPI | D12: PREPARO MECANICO E LANÇAMENTO MANUAL DE CONCRETO CICLÓPICO 1:3:5, COM 30% DE PEDRA DE MÃO, CAVAS ATÉ 80CM DE LARGURA. | E12: CONCRETO CICLÓPICO | F12: m³ | G12: =SUMIF(#REF!,'RESUMO - CIVIL'!B12,#REF!) ->  | H12: =SUMIF(#REF!,'RESUMO - CIVIL'!B12,#REF!) ->  | J12: 249.14 | K12: 293.9852
A13: 1.1.13 | B13: 2S0332600 | C13: SICRO | D13: CONCRETO ESTRUTURAL FCK=20 MPA-CONTR.RAZ.USO GER.CONF.E LANÇ | E13: CONCRETO ESTRUTURAL FCK=>20 MPa | F13: m³ | G13: =SUMIF(#REF!,'RESUMO - CIVIL'!B13,#REF!) ->  | H13: =SUMIF(#REF!,'RESUMO - CIVIL'!B13,#REF!) ->  | J13: 292.8 | K13: 345.504
A14: 1.1.14 | B14: 73936/011 | C14: SINAPI | D14: CONCRETO 1:4:8, CONCRETO MAGRO, C/ BRITA 1 E 2, C/BETONEIRA | E14: CONCRETO SIMPLES FCK=>11 MPa | F14: m³ | G14: =SUMIF(#REF!,'RESUMO - CIVIL'!B14,#REF!) ->  | H14: =SUMIF(#REF!,'RESUMO - CIVIL'!B14,#REF!) ->  | J14: 252.89 | K14: 298.4102
A15: 1.1.15 | B15: 73859/001 | C15: SINAPI | D15: DESMATAMENTO/LIMPEZA TERRENOS C/EQUIP MECAN(TRATOR:1000M2/H) | E15: DESMATAMENTO, DESTOCAMENTO E LIMPEZA DO TERRENO - ESP=50CM | F15: m² | G15: =SUMIF(#REF!,'RESUMO - CIVIL'!B15,#REF!) ->  | H15: =SUMIF(#REF!,'RESUMO - CIVIL'!B15,#REF!) ->  | J15: 0.21 | K15: 0.2478
A16: 1.1.16 | B16: C.P.U.003 | D16: DRENO DE BRITA MEDINDO 50CMX50CMX50CM | E16: DRENO DE BRITA | F16: un | G16: =SUMIF(#REF!,'RESUMO - CIVIL'!B16,#REF!) ->  | H16: =SUMIF(#REF!,'RESUMO - CIVIL'!B16,#REF!) ->  | J16: =#REF! -> 
A17: 1.1.18 | B17: C.P.U.020 | D17: ESCADA TIPO MARINHEIRO COM MONTANTES EM CHAPA 3/8" (9,53MM) E DEGRAUS EM TUBO DE AÇO 1 1/2" COM LARGURA DE 45CM E DISTANCIA EIXO A EIXO DE 30CM | E17: ESCADA DE MARINHEIRO | F17: m | G17: =SUMIF(#REF!,'RESUMO - CIVIL'!B17,#REF!) ->  | H17: =SUMIF(#REF!,'RESUMO - CIVIL'!B17,#REF!) ->  | J17: =#REF! -> 
A18: 1.1.21 | B18: 2 S 01 100 22 | C18: SICRO | D18: ESC. MEC. CARGA TRANSP. MAT 1ª CAT DMT 50 A 200M C/E | E18: ESCAVAÇÃO MAT. DE 1A, C/T ATE 200m | F18: m³ | G18: =SUMIF(#REF!,'RESUMO - CIVIL'!B18,#REF!) ->  | H18: =SUMIF(#REF!,'RESUMO - CIVIL'!B18,#REF!) ->  | J18: 4.15 | K18: 4.897
A19: 1.1.22 | B19: 2 S 01 101 26 | C19: SICRO | D19: ESC. MEC. CARGA TRANSP. MAT 2A CAT DMT 800 A 1000M C/E | E19: ESCAVAÇÃO MAT. DE 2A C/T ATE 1000m | F19: m³ | G19: =SUMIF(#REF!,'RESUMO - CIVIL'!B19,#REF!) ->  | H19: =SUMIF(#REF!,'RESUMO - CIVIL'!B19,#REF!) ->  | J19: 7.5 | K19: 8.85
A20: 1.1.23 | B20: 2 S 01 102 06 | C20: SICRO | D20: ESC. MEC. CARGA TRANSP. MAT 3A CAT DMT 800 A 1000M | E20: ESCAVAÇÃO MAT. DE 3A C/T ATE 1000m | F20: m³ | G20: =SUMIF(#REF!,'RESUMO - CIVIL'!B20,#REF!) ->  | H20: =SUMIF(#REF!,'RESUMO - CIVIL'!B20,#REF!) ->  | J20: 22.6 | K20: 26.668
A21: 1.1.25 | B21: C.P.U.005 | D21: ESCAV MEC.VALA N ESCORADA, MAT 1A, PROF. DE 1,5 A 3M, C/T ATE 200m | E21: ESCAVAÇÃO VALA, MAT. DE 1A, PROF. 2-3m, C/T ATE 200m | F21: m³ | G21: =SUMIF(#REF!,'RESUMO - CIVIL'!B21,#REF!) ->  | H21: =SUMIF(#REF!,'RESUMO - CIVIL'!B21,#REF!) ->  | J21: =#REF! -> 
A22: 1.1.26 | B22: C.P.U.006 | D22: ESCAV MEC.VALA N ESCORADA, MAT 1A, PROF. ATE 1,5M, C/T ATE 200m | E22: ESCAVAÇÃO VALA, MAT. DE 1A, PROF. ATE 1m, C/T ATE 200m | F22: m³ | G22: =SUMIF(#REF!,'RESUMO - CIVIL'!B22,#REF!) ->  | H22: =SUMIF(#REF!,'RESUMO - CIVIL'!B22,#REF!) ->  | J22: =#REF! -> 
A23: 1.1.27 | B23: C.P.U.007 | D23: ESCAVAÇÃO MEC. VALA N ESCORADA, MAT. DE 2A, PROF. 1-2m, C/T ATE 1000m | E23: ESCAVAÇÃO VALA, MAT. DE 2A, PROF. 1-2m, C/T ATE 1000m | F23: m³ | G23: =SUMIF(#REF!,'RESUMO - CIVIL'!B23,#REF!) ->  | H23: =SUMIF(#REF!,'RESUMO - CIVIL'!B23,#REF!) ->  | J23: =#REF! -> 
A24: 1.1.28 | B24: C.P.U.008 | D24: ESCAVAÇÃO MEC. VALA N ESCORADA, MAT. DE 2A, PROF. 2-3m, C/T ATE 1000m | E24: ESCAVAÇÃO VALA, MAT. DE 2A, PROF. 2-3m, C/T ATE 1000m | F24: m³ | G24: =SUMIF(#REF!,'RESUMO - CIVIL'!B24,#REF!) ->  | H24: =SUMIF(#REF!,'RESUMO - CIVIL'!B24,#REF!) ->  | J24: =#REF! -> 
A25: 1.1.29 | B25: C.P.U.009 | D25: ESCAVAÇÃO MEC. VALA N ESCORADA, MAT. DE 3A, C/T ATE 1000m | E25: ESCAVAÇÃO VALA, MAT. DE 3A, PROF. 1-2m, C/T ATE 1000m | F25: m³ | G25: =SUMIF(#REF!,'RESUMO - CIVIL'!B25,#REF!) ->  | H25: =SUMIF(#REF!,'RESUMO - CIVIL'!B25,#REF!) ->  | J25: =#REF! -> 
A26: 1.1.32 | B26: 74075/001 | C26: SINAPI | D26: FORMA MADEIRA COMP RESINADA 12MM P/ESTRUTURA REAPROV 2 VEZES - CORTE/MONTAGEM/ESCORAMENTO/DESFORMA | E26: FORMA PARA ESTRUTURAS | F26: m² | G26: =SUMIF(#REF!,'RESUMO - CIVIL'!B26,#REF!) ->  | H26: =SUMIF(#REF!,'RESUMO - CIVIL'!B26,#REF!) ->  | J26: 66.79 | K26: 78.8122
A27: 1.1.38 | B27: 1A0117001 | C27: SICRO | D27: COLCHAO DE AREIA EXTRAÍDA COM ESCAVADEIRA HIDRÁULICA | E27: FORNECIMENTO E EXECUÇÃO DE LEITO DE AREIA | F27: m³ | G27: =SUMIF(#REF!,'RESUMO - CIVIL'!B27,#REF!) ->  | H27: =SUMIF(#REF!,'RESUMO - CIVIL'!B27,#REF!) ->  | J27: 34.97 | K27: 41.2646
A28: 1.1.39 | B28: 73631 | C28: SINAPI | D28: GUARDA-CORPO EM TUBO DE ACO GALVANIZADO 1 1/2" | E28: GUARDA-CORPO METÁLICO - FORNEC. E INSTAL. | F28: m² | G28: =SUMIF(#REF!,'RESUMO - CIVIL'!B28,#REF!) ->  | H28: =SUMIF(#REF!,'RESUMO - CIVIL'!B28,#REF!) ->  | J28: 191.54 | K28: 226.0172
A29: 1.1.43 | B29: C.P.U.019 | D29: JANELA METÁLICA, TIPO BASCULANTE COM TELA DE PROTEÇÃO CONTRA ROEDORES | E29: JANELA METÁLICA TIPO BASCULANTE | F29: m² | G29: =SUMIF(#REF!,'RESUMO - CIVIL'!B29,#REF!) ->  | H29: =SUMIF(#REF!,'RESUMO - CIVIL'!B29,#REF!) ->  | I29: =G29+H29 ->  | J29: =#REF! ->  | K29: =J29*$O$2 ->  | L29: =K29*I29 ->  | N29: =K29*G29 ->  | O29: =K29*H29 -> 
A30: 1.1.46 | B30: C.P.U.010 | D30: MOMENTO EXTRAORDINÁRIO DE TRANSP. DE MAT. DE 1A E/OU 2A | E30: MOMENTO EXTRAORDINÁRIO DE TRANSP. DE MAT. DE 1A E/OU 2A | F30: m³ x km | G30: =SUMIF(#REF!,'RESUMO - CIVIL'!B30,#REF!) ->  | H30: =SUMIF(#REF!,'RESUMO - CIVIL'!B30,#REF!) ->  | J30: =#REF! -> 
A31: 1.1.47 | B31: C.P.U.011 | D31: MOMENTO EXTRAORDINÁRIO DE TRANSPORTE DE MAT. DE 3A | E31: MOMENTO EXTRAORDINÁRIO DE TRANSPORTE DE MAT. DE 3A | F31: m³ x km | G31: =SUMIF(#REF!,'RESUMO - CIVIL'!B31,#REF!) ->  | H31: =SUMIF(#REF!,'RESUMO - CIVIL'!B31,#REF!) ->  | J31: =#REF! -> 
A32: 1.1.49 | B32: 73954/002 | C32: SINAPI | D32: PINTURA LATEX ACRILICA AMBIENTES INTERNOS/EXTERNOS, DUAS DEMAOS | E32: PINTURA A BASE DE TINTA LÁTEX - 2 DEMÃOS | F32: m² | G32: =SUMIF(#REF!,'RESUMO - CIVIL'!B32,#REF!) ->  | H32: =SUMIF(#REF!,'RESUMO - CIVIL'!B32,#REF!) ->  | J32: 11.07 | K32: 13.0626
A33: 1.1.50 | B33: 79466 | C33: SINAPI | D33: PINTURA VERNIZ EM MADEIRA 2 DEMAOS | E33: PINTURA A BASE DE VERNIZ POLIURETANO - 2 DEMÃOS | F33: m² | G33: =SUMIF(#REF!,'RESUMO - CIVIL'!B33,#REF!) ->  | H33: =SUMIF(#REF!,'RESUMO - CIVIL'!B33,#REF!) ->  | J33: 7.34 | K33: 8.6612
A34: 1.1.52 | B34: 73922/003 | C34: SINAPI | D34: PISO CIMENTADO LISO DESEMPENADO, TRACO 1:3 (CIMENTO E AREIA), ESPESSURA 2,0CM, PREPARO MANUAL | E34: PISO CIMENTADO LISO | F34: m² | G34: =SUMIF(#REF!,'RESUMO - CIVIL'!B34,#REF!) ->  | H34: =SUMIF(#REF!,'RESUMO - CIVIL'!B34,#REF!) ->  | J34: 23.94 | K34: 28.2492
A35: 1.1.55 | B35: 73933/002 | C35: SINAPI | D35: PORTA DE FERRO ABRIR TIPO CHAPA LISA 0,87X2,10M, INCLUSO GUARNICOES | E35: PORTA METÁLICA, INCLUSIVE FERRAGENS | F35: m² | G35: =SUMIF(#REF!,'RESUMO - CIVIL'!B35,#REF!) ->  | H35: =SUMIF(#REF!,'RESUMO - CIVIL'!B35,#REF!) ->  | J35: 220.13 | K35: 259.7534
A36: 1.1.58 | B36: 76444/002 | C36: SINAPI | D36: REATERRO DE VALAS COMPACTACAO MECANICA, C/CONTR.DO GC >= 95% DO PN(C/COMPACTADOR SOLOS C/ PLACA VIBRATORIA MOTOR DIESEL/GASOLINA 7 A 10 HP) | E36: REATERRO COMPACTADO MECANICAMENTE, C/ CONTROLE | F36: m³ | G36: =SUMIF(#REF!,'RESUMO - CIVIL'!B36,#REF!) ->  | H36: =SUMIF(#REF!,'RESUMO - CIVIL'!B36,#REF!) ->  | J36: 10.68 | K36: 12.6024
A37: 1.1.59 | B37: 73964/005 | C37: SINAPI | D37: REATERRO DE VALA/CAVA SEM CONTROLE DE COMPACTAÇÃO , UTILIZANDO RETRO-ESCAVADEIRA E COMPACTACADOR VIBRATORIO COM MATERIAL REAPROVEITADO | E37: REATERRO COMPACTADO MECANICAMENTE, S/ CONTROLE | F37: m³ | G37: =SUMIF(#REF!,'RESUMO - CIVIL'!B37,#REF!) ->  | H37: =SUMIF(#REF!,'RESUMO - CIVIL'!B37,#REF!) ->  | J37: 6.02 | K37: 7.1036
A38: 1.1.60 | B38: 73927/006 | C38: SINAPI | D38: EMBOCO PAULISTA (MASSA UNICA) TRACO 1:1:6 (CIMENTO, CAL E AREIA), ESPESSURA 2,0CM, PREPARO MANUAL | E38: REBOCO PAULISTA (MASSA ÚNICA) | F38: m² | G38: =SUMIF(#REF!,'RESUMO - CIVIL'!B38,#REF!) ->  | H38: =SUMIF(#REF!,'RESUMO - CIVIL'!B38,#REF!) ->  | J38: 16.49 | K38: 19.4582
A39: 1.1.66 | B39: 72829 | C39: SINAPI | D39: ESCAVACAO, CARGA E TRANSPORTE DE MATERIAL DE 1A CATEGORIA, CAMINHO DE SERVICO REVESTIMENTO PRIMARIO, COM ESCAVADEIRA HIDRAULICA E CAMINHAO BASCULANTE 6 M3, DMT 800 ATE 1.000 M | E39: REVESTIMENTO PRIMÁRIO C/ MAT. DE JAZIDA, C/T ATE 1000m | F39: m³ | G39: =SUMIF(#REF!,'RESUMO - CIVIL'!B39,#REF!) ->  | H39: =SUMIF(#REF!,'RESUMO - CIVIL'!B39,#REF!) ->  | J39: 4.17 | K39: 4.9206
B40: C.P.U.024 | D40: TAMPA EM CHAPA XADREZ | F40: kg | G40: =SUMIF(#REF!,'RESUMO - CIVIL'!B40,#REF!) ->  | H40: =SUMIF(#REF!,'RESUMO - CIVIL'!B40,#REF!) ->  | J40: =#REF! -> 
E41: TOTAL | J41: R$ | K41: =SUM(L4:L40) ->  | N41: =SUM(N4:N40) ->  | O41: =SUM(O4:O40) ->  | Q41: =N41+O41 -> 
A43: OBS: os itens marcados em vermenho, ainda falta o levantamento dos quantitativos e/ou composição de preços para adequar a planilha SINAPI | K43: =#REF!+#REF! ->  | N43: =#REF! ->  | O43: =#REF! ->  | Q43: =N43+O43 -> 
L44: =K41-K43 ->  | N44: =N41-N43 ->  | O44: =O41-O43 -> 

Sheet RESUMO - MONTAGEM HIDRO (hidden)
A1: ORÇAMENTO DO PROJETO PONTAL - ÁREA NORTE RESUMO - MONTAGEM - HIDROMECÂNICOS
A2: ITEM | B2: DESCRIÇÃO | C2: UNID. | D2: QUANTID. | E2: PREÇO UNIT. S/BDI | F2: PREÇO UNIT. C/BDI | G2: PREÇO TOTAL
A4: 1 | B4: MONTAGEM - HIDROMECÂNICOS
A5: 1.1 | B5: MONT. COMP.PLANA, C/PEDESTAL E VOLANTE, 1,00 X 1,00M | C5: un | D5: 10 | E5: 1088 | F5: 1414.4 | G5: =F5*D5 -> 14144
A6: 1.2 | B6: MONT. TUBO PVC RIGIDO, J/E, DEFOFO, DIAM.100MM | C6: m | D6: 1730 | E6: 2.49 | F6: 3.24 | G6: 5605.2
A7: 1.3 | B7: MONT. TUBO PVC RIGIDO, J/E, DEFOFO, DIAM.300MM | C7: m | D7: 800 | E7: 10.49 | F7: 13.64 | G7: 10912
A8: 1.4 | B8: MONT.VALV. ADMISSAO DE AR DN=80MM, PN-10 | C8: un | D8: 2 | E8: 27.73 | F8: 36.05 | G8: 72.1
A9: 1.5 | B9: MONT.VALV. GAVETA ACION. DIRETO VOLANTE, PN-10, DN=50MM | C9: un | D9: 10 | E9: 7.71 | F9: 10.02 | G9: 100.2
A10: 1.6 | B10: MONTAGEM COMPORTA TIPO SEGMENTO | C10: cj | D10: 7 | E10: 8045.95 | F10: 10459.74 | G10: 73218.18
A11: 1.7 | B11: MONTAGEM DE COMP. PLANA C/PEDESTAL DN=200MM - MOTORIZADA | C11: un | D11: 3 | E11: 650 | F11: 845 | G11: 2535
A12: 1.8 | B12: MONTAGEM DE COMP. PLANA C/PEDESTAL DN=300MM - MOTORIZADA | C12: un | D12: 22 | E12: 884 | F12: 1149.2 | G12: 25282.4
A13: 1.9 | B13: MONTAGEM DE COMP. PLANA C/PEDESTAL DN=400MM - MOTORIZADA | C13: un | D13: 2 | E13: 1049.75 | F13: 1364.68 | G13: 2729.36
A14: 1.10 | B14: MONTAGEM DE COMP. PLANA C/PEDESTAL DN=500MM - MOTORIZADA | C14: un | D14: 1 | E14: 1100 | F14: 1430 | G14: 1430
A15: 1.11 | B15: MONTAGEM DE COMPORTA ENSECADEIRA DE AÇO | C15: m² | D15: 8 | E15: 213.25 | F15: 277.23 | G15: 2217.84
A16: 1.12 | B16: MONTAGEM DE COMPORTA PLANA C/PEDESTAL DN=400MM | C16: un | D16: 4 | E16: 537.46 | F16: 698.7 | G16: 2794.8
A17: 1.13 | B17: MONTAGEM DE COMPORTA PLANA C/PEDESTAL DN=500MM | C17: un | D17: 3 | E17: 594.04 | F17: 772.25 | G17: 2316.75
A18: 1.14 | B18: MONTAGEM DE COMPORTA PLANA C/PEDESTAL DN=700MM - MOTORIZADA | C18: un | D18: 2 | E18: 859.94 | F18: 1117.92 | G18: 2235.84
A19: 1.15 | B19: MONTAGEM DE COMPORTA PLANA C/PEDESTAL DN=800MM - MOTORIZADA | C19: un | D19: 1 | E19: 956.12 | F19: 1242.96 | G19: 1242.96
A20: 1.16 | B20: MONTAGEM DE COMPORTA PLANA C/PEDESTAL DN=900MM | C20: un | D20: 1 | E20: 851 | F20: 1106.3 | G20: 1106.3
A21: 1.17 | B21: MONTAGEM DE GRADE DE PROTEÇÃO | C21: m² | D21: 10 | E21: 105.79 | F21: 137.53 | G21: 1375.3
A22: 1.18 | B22: MONTAGEM DE REGISTRO DE GAVETA COM FLANGES FO.FO. DN 100 | C22: un | D22: 14 | E22: 30.44 | F22: 39.57 | G22: 553.98
A23: 1.19 | B23: MONTAGEM DE REGISTRO DE GAVETA COM FLANGES FO.FO. DN 150 | C23: un | D23: 4 | E23: 42.93 | F23: 55.81 | G23: 223.24
A24: 1.20 | B24: MONTAGEM DE REGISTRO DE GAVETA COM FLANGES FO.FO. DN 80 | C24: un | D24: 2 | E24: 16.14 | F24: 20.98 | G24: 41.96
A25: 1.21 | B25: MONTAGEM DE TALHA MANUAL C/MONOVIA CAP=1,0TON | C25: un | D25: 4 | E25: 4530.5 | F25: 5889.65 | G25: 23558.6
A26: 1.22 | B26: MONTAGEM DE VÁLVULA DE ADMISSÃO DE AR, DN=100MM | C26: un | D26: 2 | E26: 103.845 | F26: 135 | G26: 270
A27: 1.23 | B27: MONTAGEM DE VÁLVULA TIPO BORBOLETA DN=400MM C/ATUADOR | C27: un | D27: 1 | E27: 210 | F27: 273 | G27: 273
A28: 1.24 | B28: MONTAGEM DE VÁLVULA TIPO BORBOLETA DN=500MM C/ATUADOR | C28: un | D28: 1 | E28: 295 | F28: 383.5 | G28: 383.5
A29: 1.25 | B29: MONTAGEM DE VÁLVULA TIPO BORBOLETA DN=800MM C/ATUADOR | C29: un | D29: 3 | E29: 452.6 | F29: 588.38 | G29: 1765.14
A30: 1.26 | B30: MONTAGEM DE VENTOSA DE TRIPLICE FUNÇÃO DN=150 | C30: un | D30: 5 | E30: 31.33 | F30: 40.73 | G30: 203.65
A31: 1.27 | B31: MONTAGEM DE VENTOSA SIMPLES FUNÇÃO DN 50 | C31: un | D31: 10 | E31: 25.6 | F31: 33.28 | G31: 332.8
A32: 1.28 | B32: MONTAGEM REGISTRO DE GAVETA COM FLANGES FO.FO. DN 100 | C32: un | D32: 10 | E32: 30.44 | F32: 39.57 | G32: 395.7
A33: 1.29 | B33: MONTAGEM REGISTRO DE GAVETA COM FLANGES FO.FO. DN=150MM | C33: un | D33: 1 | E33: 42.93 | F33: 55.81 | G33: 55.81
A34: 1.30 | B34: MONTAGEM REGISTRO DE GAVETA COM FLANGES FO.FO. DN=300MM | C34: un | D34: 39 | E34: 121.55 | F34: 158.02 | G34: 6162.78
A35: 1.31 | B35: MONTAGEM REGISTRO GAVETA FO.FO. DN 200 | C35: un | D35: 4 | E35: 65.23 | F35: 84.8 | G35: 339.2
A36: 1.32 | B36: MONTAGEM TUBO FO.FO., K-7, P&B, JUNTA ELAST., DIAM. 300MM | C36: m | D36: 2581 | E36: 32.15 | F36: 41.8 | G36: 107885.8
A37: 1.33 | B37: MONTAGEM TUBO FO.FO., K-7, P&B, JUNTA ELAST., DIAM. 350MM | C37: m | D37: 688 | E37: 42.21 | F37: 54.87 | G37: 37750.56
A38: 1.34 | B38: MONTAGEM TUBO FO.FO., K-7, P&B, JUNTA ELAST., DIAM. 400MM | C38: m | D38: 3433 | E38: 51.12 | F38: 66.46 | G38: 228157.18
A39: 1.35 | B39: MONTAGEM TUBO FO.FO., K-7, P&B, JUNTA ELAST., DIAM. 450MM | C39: m | D39: 2004 | E39: 53.32 | F39: 69.32 | G39: 138917.28
A40: 1.36 | B40: MONTAGEM TUBO FO.FO., K-7, P&B, JUNTA ELAST., DIAM. 500MM | C40: m | D40: 1295 | E40: 69.27 | F40: 90.05 | G40: 116614.75
A41: 1.37 | B41: MONTAGEM TUBO FO.FO., K-7, P&B, JUNTA ELAST., DIAM. 600MM | C41: m | D41: 2228 | E41: 90.11 | F41: 117.14 | G41: 260987.92
A42: 1.38 | B42: MONTAGEM TUBO FO.FO., K-7, P&B, JUNTA ELAST., DIAM. 700MM | C42: m | D42: 1835 | E42: 115.67 | F42: 150.37 | G42: 275928.95
A43: 1.39 | B43: MONTAGEM TUBO FO.FO., K-7, P&B, JUNTA ELAST., DIAM. 800MM | C43: m | D43: 430 | E43: 140.52 | F43: 182.68 | G43: 78552.4
A44: 1.40 | B44: MONTAGEM TUBO FO.FO., P&F, PN-10, DIAM. 200MM (TOMADAS) | C44: m | D44: 24 | E44: 23.99 | F44: 31.19 | G44: 748.56
A45: 1.41 | B45: MONTAGEM TUBO FO.FO., P&F, PN-10, DIAM. 300MM (TOMADAS) | C45: m | D45: 440 | E45: 37.13 | F45: 48.27 | G45: 21238.8
A46: 1.42 | B46: MONTAGEM TUBO FO.FO., P&F, PN-10, DIAM. 400MM (TOMADAS) | C46: m | D46: 95 | E46: 49.97 | F46: 64.96 | G46: 6171.2
A47: 1.43 | B47: MONTAGEM TUBO FO.FO., P&F, PN-10, DIAM. 500MM (TOMADAS) | C47: m | D47: 60 | E47: 67.06 | F47: 87.18 | G47: 5230.8
A48: 1.44 | B48: MONTAGEM TUBO FO.FO., P&F, PN-10, DIAM. 700MM (TOMADAS) | C48: m | D48: 20 | E48: 115.67 | F48: 150.37 | G48: 3007.4
A49: 1.45 | B49: MONTAGEM TUBO FO.FO., P&F, PN-10, DIAM. 800MM (TOMADAS) | C49: m | D49: 11 | E49: 140.52 | F49: 182.68 | G49: 2009.48
A50: 1.46 | B50: MONTAGEM TUBO FO.FO., P&F, PN-10, DIAM. 900MM (TOMADAS) | C50: m | D50: 22 | E50: 204.66 | F50: 266.06 | G50: 5853.32
A51: 1.47 | B51: MONTAGEM TUBUL. E PECAS DE AÇO CARBONO DN=1200MM C/TESTE HIDROST. | C51: m | D51: 7753 | E51: 112.67 | F51: 146.47 | G51: 1135581.91
A52: 1.48 | B52: MONTAGEM VENTOSA DE TRIPLICE FUNÇÃO FO.FO DN 100 | C52: un | D52: 11 | E52: 26.87 | F52: 34.93 | G52: 384.23
B53: TOTAL | E53: R$ | F53: =SUM(G5:G52) -> 2608898.13

Sheet RESUMO - FORNEC HIDRO (hidden)
A1: ORÇAMENTO DO PROJETO PONTAL - ÁREA NORTE RESUMO - FORNECIMENTO - HIDROMECÂNICOS
A2: ITEM | B2: DESCRIÇÃO | C2: UNID. | D2: QUANTID. | E2: PREÇO UNIT. S/BDI | F2: PREÇO UNIT. C/BDI | G2: PREÇO TOTAL
A4: 1 | B4: FORNECIMENTO - HIDROMECÂNICOS
A5: 1.1 | B5: COLAR DE AÇO ASTM-A-36 C/TRATAMENTO E PECAS (TOMADAS D'ÁGUA) | C5: kg | D5: 220 | E5: 5 | F5: 6 | G5: =F5*D5 -> 1320
A6: 1.2 | B6: COMPORTA ENSECADEIRA EM 1 PAINEL DE AÇO DE 1420x1380mm | C6: cj | D6: 2 | E6: 20140 | F6: 24168 | G6: 48336
A7: 1.3 | B7: COMPORTA ENSECADEIRA EM 1 PAINEL DE AÇO DE 1720x1380mm | C7: cj | D7: 4 | E7: 22388.57 | F7: 26866.28 | G7: 107465.12
A8: 1.4 | B8: COMPORTA ENSECADEIRA EM 1 PAINEL DE AÇO DE 1960x1840mm | C8: cj | D8: 2 | E8: 28430.33 | F8: 34116.4 | G8: 68232.8
A9: 1.5 | B9: COMPORTA ENSECADEIRA EM 2 PAINEIS DE AÇO DE 1320x900mm | C9: cj | D9: 2 | E9: 18730.7 | F9: 22476.84 | G9: 44953.68
A10: 1.6 | B10: COMPORTA ENSECADEIRA EM 2 PAINEIS DE AÇO DE 1420x1000mm | C10: cj | D10: 2 | E10: 22388.57 | F10: 26866.28 | G10: 53732.56
A11: 1.7 | B11: COMPORTA ENSECADEIRA EM 2 PAINEIS DE AÇO DE 1820x1000mm | C11: cj | D11: 2 | E11: 28695.21 | F11: 34434.25 | G11: 68868.5
A12: 1.8 | B12: COMPORTA ENSECADEIRA EM 2 PAINEIS DE AÇO DE 3064x1150mm | C12: cj | D12: 1 | E12: 55555.19 | F12: 66666.23 | G12: 66666.23
A13: 1.9 | B13: COMPORTA PLANA CIRCULAR C/PEDESTAL, DN=200MM - MOTORIZADA | C13: cj | D13: 3 | E13: 2300 | F13: 3266 | G13: 9798
A14: 1.10 | B14: COMPORTA PLANA CIRCULAR C/PEDESTAL, DN=300MM - MOTORIZADA | C14: cj | D14: 22 | E14: 2959.2 | F14: 4202.06 | G14: 92445.32
A15: 1.11 | B15: COMPORTA PLANA CIRCULAR C/PEDESTAL, DN=400MM | C15: cj | D15: 4 | E15: 2453.8 | F15: 3484.4 | G15: 13937.6
A16: 1.12 | B16: COMPORTA PLANA CIRCULAR C/PEDESTAL, DN=400MM - MOTORIZADA | C16: cj | D16: 2 | E16: 3699 | F16: 5252.58 | G16: 10505.16
A17: 1.13 | B17: COMPORTA PLANA CIRCULAR C/PEDESTAL, DN=500MM | C17: cj | D17: 3 | E17: 2851.53 | F17: 4049.17 | G17: 12147.51
A18: 1.14 | B18: COMPORTA PLANA CIRCULAR C/PEDESTAL, DN=500MM - MOTORIZADA | C18: cj | D18: 1 | E18: 4665.2 | F18: 6624.58 | G18: 6624.58
A19: 1.15 | B19: COMPORTA PLANA CIRCULAR C/PEDESTAL, DN=700MM - MOTORIZADA | C19: cj | D19: 2 | E19: 6658.2 | F19: 9454.64 | G19: 18909.28
A20: 1.16 | B20: COMPORTA PLANA CIRCULAR C/PEDESTAL, DN=800MM - MOTORIZADA | C20: cj | D20: 1 | E20: 7651.81 | F20: 10865.57 | G20: 10865.57
A21: 1.17 | B21: COMPORTA PLANA CIRCULAR C/PEDESTAL, DN=900MM | C21: cj | D21: 1 | E21: 6551.1 | F21: 9302.56 | G21: 9302.56
A22: 1.18 | B22: COMPORTA PLANA QUADRADA C/PEDESTAL 1000X1000MM | C22: cj | D22: 10 | E22: 8089.42 | F22: 11486.98 | G22: 114869.8
A23: 1.19 | B23: COMPORTA SETOR 1,10X1,90 - RAIO=2,00M COM. HIDRAUL. - COMPLETA | C23: cj | D23: 1 | E23: 52150 | F23: 62580 | G23: 62580
A24: 1.20 | B24: COMPORTA SETOR 1,20X1,50 - RAIO=1,50M COM. HIDRAUL. - COMPLETA | C24: cj | D24: 1 | E24: 54081 | F24: 64897.2 | G24: 64897.2
A25: 1.21 | B25: COMPORTA SETOR 1,20X2,00 - RAIO=2,00M COM. HIDRAUL. - COMPLETA | C25: cj | D25: 1 | E25: 59930 | F25: 71916 | G25: 71916
A26: 1.22 | B26: COMPORTA SETOR 1,50X1,80 - RAIO=2,00M COM. HIDRAUL. - COMPLETA | C26: cj | D26: 2 | E26: 63625.38 | F26: 76350.46 | G26: 152700.92
A27: 1.23 | B27: COMPORTA SETOR 1,60X2,00 - RAIO=2,00M COM. HIDRAUL. - COMPLETA | C27: cj | D27: 1 | E27: 85046 | F27: 102055.2 | G27: 102055.2
A28: 1.24 | B28: COMPORTA SETOR 2,80X2,20 - RAIO=2,50M COM. HIDRAUL. - COMPLETA | C28: cj | D28: 1 | E28: 153700 | F28: 184440 | G28: 184440
A29: 1.25 | B29: CONEXÕES DE FO.FO. PARA AS TOMADAS - DN=200MM | C29: VB | D29: 3 | E29: 623.8 | F29: 748.56 | G29: 2245.68
A30: 1.26 | B30: CONEXÕES DE FO.FO. PARA AS TOMADAS - DN=300MM | C30: VB | D30: 24 | E30: 2050 | F30: 2460 | G30: 59040
A31: 1.27 | B31: CONEXÕES DE FO.FO. PARA AS TOMADAS - DN=400MM | C31: VB | D31: 5 | E31: 2450 | F31: 2940 | G31: 14700
A32: 1.28 | B32: CONEXÕES DE FO.FO. PARA AS TOMADAS - DN=500MM | C32: VB | D32: 4 | E32: 2850 | F32: 3420 | G32: 13680
A33: 1.29 | B33: CONEXÕES DE FO.FO. PARA AS TOMADAS - DN=700MM | C33: VB | D33: 2 | E33: 3650 | F33: 4380 | G33: 8760
A34: 1.30 | B34: CONEXÕES DE FO.FO. PARA AS TOMADAS - DN=800MM | C34: VB | D34: 1 | E34: 4850 | F34: 5820 | G34: 5820
A35: 1.31 | B35: CONEXÕES DE FO.FO. PARA AS TOMADAS - DN=900MM | C35: VB | D35: 1 | E35: 5350 | F35: 6420 | G35: 6420
A36: 1.32 | B36: CONEXÕES E PEÇAS ESPECIAIS DA TUBUL TR03 | C36: VB | D36: 1 | E36: 25450 | F36: 30540 | G36: 30540
A37: 1.33 | B37: CONEXÕES E PEÇAS ESPECIAIS DA TUBUL TR04 | C37: VB | D37: 1 | E37: 56060 | F37: 67272 | G37: =F37*D37 -> 67272
A38: 1.34 | B38: CONEXÕES E PEÇAS ESPECIAIS DO SIFÃO SF01 | C38: VB | D38: 1 | E38: 74990 | F38: 89988 | G38: 89988
A39: 1.35 | B39: CONEXÕES E PEÇAS ESPECIAIS DO SIFÃO SF02 | C39: VB | D39: 1 | E39: 98080 | F39: 117696 | G39: 117696
A40: 1.36 | B40: CONEXÕES E TUBOS DN=100MM P/DESCARGAS DE FUNDO | C40: CJ | D40: 11 | E40: 701 | F40: 841.2 | G40: 9253.2
A41: 1.37 | B41: EXTREMIDADE FO.FO., FLANGE E BOLSA, PN10, J.ELAST. DN=300MM | C41: un | D41: 3 | E41: 472.32 | F41: 566.78 | G41: 1700.34
A42: 1.38 | B42: FORNECIMENTO DE TUBOS DE FOFO PONTA/FLANGE P/TOMADAS D'ÁGUA | C42: VB | D42: 1 | E42: 3690 | F42: 4428 | G42: 4428
A43: 1.39 | B43: FORNECIMENTO DE TUBOS DE FOFO PONTA/FLANGE P/TOMADAS D'ÁGUA | C43: VB | D43: 1 | E43: 8700 | F43: 10440 | G43: 10440
A44: 1.40 | B44: FORNECIMENTO DE TUBOS DE FOFO PONTA/FLANGE P/TOMADAS D'ÁGUA | C44: VB | D44: 1 | E44: 9520 | F44: 11424 | G44: 11424
A45: 1.41 | B45: FORNECIMENTO DE TUBOS DE FOFO PONTA/FLANGE P/TOMADAS D'ÁGUA | C45: VB | D45: 1 | E45: 10332.9 | F45: 12399.48 | G45: 12399.48
A46: 1.42 | B46: FORNECIMENTO DE TUBOS DE FOFO PONTA/FLANGE P/TOMADAS D'ÁGUA | C46: VB | D46: 1 | E46: 12730 | F46: 15276 | G46: 15276
A47: 1.43 | B47: FORNECIMENTO DE TUBOS DE FOFO PONTA/FLANGE P/TOMADAS D'ÁGUA | C47: VB | D47: 1 | E47: 19300 | F47: 23160 | G47: 23160
A48: 1.44 | B48: FORNECIMENTO DE TUBOS DE FOFO PONTA/FLANGE P/TOMADAS D'ÁGUA | C48: VB | D48: 1 | E48: 47000 | F48: 56400 | G48: 56400
A49: 1.45 | B49: FORNECIMENTO DE TUBOS DE FOFO PONTA/FLANGE P/TOMADAS D'ÁGUA | C49: VB | D49: 1 | E49: 205851 | F49: 247021.2 | G49: 247021.2
A50: 1.46 | B50: GRADE DE BARRAS FIXA - 1760x1830mm | C50: un | D50: 3 | E50: 18192.52 | F50: 21831.02 | G50: 65493.06
A51: 1.47 | B51: JUNTA DE MONTAGEM, DN=800MMM | C51: un | D51: 3 | E51: 3211 | F51: 3853.2 | G51: 11559.6
A52: 1.48 | B52: JUNTA DRESSER, ESTILO 38, DN=700MM | C52: un | D52: 2 | E52: 2748.8 | F52: 3298.56 | G52: 6597.12
A53: 1.49 | B53: JUNTA DRESSER, ESTILO 38, DN=800MM | C53: un | D53: 1 | E53: 3106.69 | F53: 3728.03 | G53: 3728.03
A54: 1.50 | B54: JUNTA DRESSER, ESTILO 38, DN=900MM | C54: un | D54: 1 | E54: 4497.92 | F54: 5397.5 | G54: 5397.5
A55: 1.51 | B55: JUNTA GIBAULT DN=200MM | C55: un | D55: 3 | E55: 297.36 | F55: 356.83 | G55: 1070.49
A56: 1.52 | B56: JUNTA GIBAULT DN=300MM | C56: un | D56: 61 | E56: 517.86 | F56: 621.43 | G56: 37907.23
A57: 1.53 | B57: JUNTA GIBAULT DN=400MM | C57: un | D57: 6 | E57: 220.41 | F57: 264.49 | G57: 1586.94
A58: 1.54 | B58: JUNTA GIBAULT DN=500MM | C58: un | D58: 4 | E58: 780.99 | F58: 937.19 | G58: 3748.76
A59: 1.55 | B59: PROTEÇÃO CATÓDICA EM TUBULAÇÃO DE AÇO | C59: VB | D59: 1 | E59: 30000 | F59: 36000 | G59: 36000
A60: 1.56 | B60: PROTEÇÃO CATÓDICA EM TUBULAÇÃO DE AÇO | C60: VB | D60: 1 | E60: 39100 | F60: 46920 | G60: 46920
A61: 1.57 | B61: PROTEÇÃO CATÓDICA EM TUBULAÇÃO DE AÇO | C61: VB | D61: 1 | E61: 43700 | F61: 52440 | G61: 52440
A62: 1.58 | B62: PROTEÇÃO CATÓDICA EM TUBULAÇÃO DE AÇO | C62: VB | D62: 1 | E62: 52000 | F62: 62400 | G62: 62400
A63: 1.59 | B63: TALHA MANUAL C/MONOVIA CAP=1 TON - COMPLETA | C63: un | D63: 4 | E63: 43155 | F63: 51786 | G63: 207144
A64: 1.60 | B64: TUBO FO.FO.,K-7,P&B,JUNTA ELAST. JE2GS, DIAM. 300MM | C64: m | D64: 2581 | E64: 107.16 | F64: 128.59 | G64: 331890.79
A65: 1.61 | B65: TUBO FO.FO.,K-7,P&B,JUNTA ELAST. JE2GS, DIAM. 350MM | C65: m | D65: 688 | E65: 140.72 | F65: 168.86 | G65: 116175.68
A66: 1.62 | B66: TUBO FO.FO.,K-7,P&B,JUNTA ELAST. JE2GS, DIAM. 400MM | C66: m | D66: 3433 | E66: 170.42 | F66: 204.5 | G66: 702048.5
A67: 1.63 | B67: TUBO FO.FO.,K-7,P&B,JUNTA ELAST. JE2GS, DIAM. 450MM | C67: m | D67: 2004 | E67: 200.68 | F67: 240.82 | G67: 482603.28
A68: 1.64 | B68: TUBO FO.FO.,K-7,P&B,JUNTA ELAST. JE2GS, DIAM. 500MM | C68: m | D68: 1295 | E68: 230.93 | F68: 277.12 | G68: 358870.4
A69: 1.65 | B69: TUBO FO.FO.,K-7,P&B,JUNTA ELAST. JE2GS, DIAM. 600MM | C69: m | D69: 2228 | E69: 300.38 | F69: 360.46 | G69: =F69*D69 -> 803104.88
A70: 1.66 | B70: TUBO FO.FO.,K-7,P&B,JUNTA ELAST. JE2GS, DIAM. 700MM | C70: m | D70: 1835 | E70: 385.56 | F70: 462.67 | G70: 848999.45
A71: 1.67 | B71: TUBO FO.FO.,K-7,P&B,JUNTA ELAST. JE2GS, DIAM. 800MM | C71: m | D71: 430 | E71: 468.4 | F71: 562.08 | G71: 241694.4
A72: 1.68 | B72: TUBO PVC RIGIDO, J/E, DEFOFO, DIAM 100MM | C72: m | D72: 1730 | E72: 12.41 | F72: 14.89 | G72: 25759.7
A73: 1.69 | B73: TUBO PVC RIGIDO, J/E, DEFOFO, DIAM 300MM | C73: m | D73: 800 | E73: 80.63 | F73: 96.76 | G73: 77408
A74: 1.70 | B74: TUBOS DE AÇO CARBONO DN=1200MM C/TRATAMENTO | C74: m | D74: 7753 | E74: 889.84 | F74: 1067.81 | G74: 8278730.93
A75: 1.71 | B75: VÁLV. ADMISSÃO DE AR, DN=100MM, PN-10 | C75: un | D75: 2 | E75: 2710 | F75: 3252 | G75: 6504
A76: 1.72 | B76: VÁLV. ADMISSÃO DE AR, DN=80MM, PN-10 | C76: un | D76: 2 | E76: 867.3 | F76: 1040.76 | G76: 2081.52
A77: 1.73 | B77: VÁLV. GAVETA ACION. DIRETO VOLANTE, PN-10, DN= 150MM | C77: un | D77: 1 | E77: 650.57 | F77: 780.68 | G77: 780.68
A78: 1.74 | B78: VÁLV. GAVETA ACION. DIRETO VOLANTE, PN-10, DN= 300MM | C78: un | D78: 39 | E78: 2093.39 | F78: 2512.07 | G78: 97970.73
A79: 1.75 | B79: VÁLV. GAVETA ACION. DIRETO VOLANTE, PN-10, DN=100MM | C79: un | D79: 24 | E79: 414.85 | F79: 497.82 | G79: 11947.68
A80: 1.76 | B80: VÁLV. GAVETA ACION. DIRETO VOLANTE, PN-10, DN=150MM | C80: un | D80: 4 | E80: 650.57 | F80: 780.68 | G80: 3122.72
A81: 1.77 | B81: VÁLV. GAVETA ACION. DIRETO VOLANTE, PN-10, DN=200MM | C81: un | D81: 4 | E81: 993.63 | F81: 1192.36 | G81: 4769.44
A82: 1.78 | B82: VÁLV. GAVETA ACION. DIRETO VOLANTE, PN-10, DN=50MM | C82: un | D82: 11 | E82: 234.24 | F82: 281.09 | G82: 3091.99
A83: 1.79 | B83: VÁLV. GAVETA ACION. DIRETO VOLANTE, PN-10, DN=80MM | C83: un | D83: 2 | E83: 346.92 | F83: 416.3 | G83: 832.6
A84: 1.80 | B84: VÁLVULA BORBOLETA C/ATUADOR ELÉTRICO DN=800MM PN-10 | C84: cj | D84: 3 | E84: 37750.64 | F84: 45300.77 | G84: 135902.31
A85: 1.81 | B85: VÁLVULA BORBOLETA COM FLANGES E ATUADOR MECANICO FOFO DN=400 | C85: cj | D85: 1 | E85: 7386.78 | F85: 8864.14 | G85: 8864.14
A86: 1.82 | B86: VÁLVULA BORBOLETA COM FLANGES E ATUADOR MECANICO FOFO DN=500 | C86: cj | D86: 1 | E86: 8058.3 | F86: 9669.96 | G86: 9669.96
A87: 1.83 | B87: VENTOSA DE TRIPLICE FUNÇÃO FO.FO. DN 100 | C87: un | D87: 11 | E87: 904.51 | F87: 1085.41 | G87: 11939.51
A88: 1.84 | B88: VENTOSA DE TRIPLICE FUNÇÃO, FOFO, DN=150MM | C88: un | D88: 5 | E88: 1392.74 | F88: 1671.29 | G88: 8356.45
A89: 1.85 | B89: VENTOSA SIMPLES EFEITO DN=50MM PN10 - FLANGEADA | C89: un | D89: 10 | E89: 134.82 | F89: 161.78 | G89: 1617.8
A90: 1.86 | B90: VISITA EM AÇO CARBONO | C90: kg | D90: 347 | E90: 4 | F90: 4.8 | G90: 1665.6
B91: TOTAL | E91: R$ | F91: =SUM(G5:G90) -> 15323629.36

Sheet AUXILIAR (hidden)
B1: AÇO ESPECIAL CA-50/60
A2: ACO CA-50 3/4" (19,05 MM) | C2: ACO CA-50 3/4" (19,05 MM)
A3: ACO CA-50 1/2" (12,70 MM) | C3: ACO CA-50 1/2" (12,70 MM)
A4: ACO CA-50 1/4" (6,35 MM) | C4: ACO CA-50 1/4" (6,35 MM)
A5: ACO CA-50 3/8" (9,52 MM) | C5: ACO CA-50 3/8" (9,52 MM)
A6: ACO CA-50 5/8" (15,87 MM) | C6: ACO CA-50 5/8" (15,87 MM)
A7: ACO CA-60 - 5,0MM | C7: ACO CA-60 - 5,0MM
A8: ALVENARIA DE BLOCOS DE CONCRETO ESTRUTURAL 19X19X39CM, ESPESSURA 19CM, ASSENTADOS COM ARGAMASSA TRACO 1:0,25:4 (CIMENTO, CAL E AREIA) | B8: ALVENARIA DE BLOCOS DE CONCRETO - 19x19x39cm | C8: ALVENARIA DE BLOCOS DE CONCRETO ESTRUTURAL 19X19X39CM, ESPESSURA 19CM, ASSENTADOS COM ARGAMASSA TRACO 1:0,25:4 (CIMENTO, CAL E AREIA)
A9: APARELHO APOIO ESTRUTURAL DE NEOPRENE FRETADO | B9: APARELHO DE APOIO, DE NEOPRENE | C9: APARELHO APOIO ESTRUTURAL DE NEOPRENE FRETADO
A10: ARGAMASSA CIMENTO/AREIA 1:3 - PREPARO MECANICO | B10: ARGAMASSA DE CIMENTO AREIA 1:3 | C10: ARGAMASSA CIMENTO/AREIA 1:3 - PREPARO MECANICO
A11: ATERRO COMPACTADO MECANICAMICAMENTE EM CAMADAS DE 20CM, C/CONT., MAT. JAZIDA, C/T ATE 1000 m - 95% PN | B11: ATERRO COMPACTADO MECANICAM., C/CONT., MAT. JAZIDA, C/T ATE 1000 m - 95% PN | C11: ATERRO COMPACTADO MECANICAMICAMENTE EM CAMADAS DE 20CM, C/CONT., MAT. JAZIDA, C/T ATE 1000 m - 95% PN
A12: ATERRO COMPACTADO, EM CAMADA DE 20 CM C/ CONTROLE., C/ REAPROV. DE MATERIAL (SOLOS COLAPSÍVEIS - 100% PN) C/T ATÉ 200 m | B12: ATERRO COMPACTADO, C/ CONTROLE., C/ REAPROV. DE MATERIAL (SOLOS COLAPSÍVEIS - 100% PN) C/T ATÉ 200 m | C12: ATERRO COMPACTADO, EM CAMADA DE 20 CM C/ CONTROLE., C/ REAPROV. DE MATERIAL (SOLOS COLAPSÍVEIS - 100% PN) C/T ATÉ 200 m
A13: PEDRA BRITADA BICA CORRIDA (NÃO CLASSIFICADA) | B13: BRITA | C13: AZULEJO 1A 15X15CM FIXADO ARGAMASSA COLANTE, REJUNTAMENTO COM CIMENTO BRANCO
A14: CERCA COM MOURÕES DE CONCRETO, SEÇÃO "T" PONTA INCLINADA, 7,5X7,5CM, ESPAÇAMENTO DE 3M, CRAVADOS 0,5M, COM 11 FIOS DE ARAME FARPADO Nº14 CLASSE 250 - FORNEC E COLOC. | B14: CERCA C/ MOIRÕES DE CONCRETO E ARAME FARPADO (11 FIOS) | C14: BANCA (TAMPO) DE MARMORE SINTETICO 120X60CM COM CUBA, VALVULA EM PLASTICO BRANCO 1", SIFAO PLASTICO TIPO COPO 1" E TORNEIRA CROMADA LONGA 1/2" OU 3/4" PARA PIA PADRAO POPULAR - FORNECIMENTO E INSTALACAO
A15: CHAPISCO RUSTICO TRACO 1:3 (CIMENTO E AREIA), ESPESSURA 2CM, PREPARO MANUAL | B15: CHAPISCO | C15: BUEIROS - CANAL PRINCIPAL - TRECHO "F" (BU-13 A BU-15)
A16: CIMBRAMENTO DE MADEIRA | B16: CIMBRAMENTO | C16: BUEIROS - CANAL SECUNDÁRIO CS04 (BU-16 A BU-17)
A17: COBERTURA COM TELHA DE FIBROCIMENTO ESTRUTURAL LARGURA ÚTIL 49CM OU 44CM, INCLUSO ACESSÓRIOS DE FIXAÇÃO E VEDAÇÃO | B17: COBERTURA CIMENTO AMIANTO TIPO CANALETE C/ENGRADAM., ACESSÓRIOS | C17: Cabo de cobre nu têmpera meio-mole bitola 16 mm2 - Ref.: Ficap
A18: PREPARO MECANICO E LANÇAMENTO MANUAL DE CONCRETO CICLÓPICO 1:3:5, COM 30% DE PEDRA DE MÃO, CAVAS ATÉ 80CM DE LARGURA. | B18: CONCRETO CICLÓPICO | C18: Cabo de cobre nu têmpera meio-mole bitola 25 mm2 - Ref.: Ficap
A19: CONCRETO USINADO, IMPORTADO, ESTRUTURAL FCK=20MPA INCLUS. TRANSPORTE HORIZONTAL ATÉ 20M (PROD. 2M3/H) EM CARRINHOS, ADENSAMENTO E ACABAMENTO | B19: CONCRETO ESTRUTURAL FCK=>20 MPa | C19: Cabo de cobre nu têmpera meio-mole bitola 35 mm2 - Ref.: Ficap
A20: CONCRETO 1:4:8, CONCRETO MAGRO, C/ BRITA 1 E 2, C/BETONEIRA | B20: CONCRETO SIMPLES FCK=>11 MPa | C20: Cabo de cobre nu têmpera meio-mole bitola 70 mm2 - Ref.: Ficap
A21: DESMATAMENTO/LIMPEZA TERRENOS C/EQUIP MECAN(TRATOR:1000M2/H) | B21: DESMATAMENTO, DESTOCAMENTO E LIMPEZA DO TERRENO - ESP=50CM | C21: Cabo isolado 450/750V BWF Antiflan bitola 70 mm2 - Ref.: Ficap
A22: CAIXA DE BRITA PARA DRENAGEM MEDINDO 50CMX50CMX50CM | B22: DRENO DE BRITA | C22: CAIXA DE BRITA PARA DRENAGEM MEDINDO 50CMX50CMX50CM
A23: ENROCAMENTO MANUAL C/ PEDRA JOGADA-E/C/T/D ATE 1000m | B23: ENROCAMENTO C/ PEDRA JOGADA-E/C/T/D ATE 1000m | C23: CAIXA DE INSPEÇÃO EM ALVENARIA DE TIJOLO MACIÇO 60X60X60CM, REVESTIDA INTERNAMENTO COM BARRA LISA (CIMENTO E AREIA, TRAÇO 1:4) E=2,0CM, COM TAMPA PRÉ-MOLDADA DE CONCRETO E FUNDO DE CONCRETO 15MPA TIPO C - ESCAVAÇÃO E CONFECÇÃO
A24: ESCADA TIPO MERINHEIRO COM MONTANTES EM CHAPA 3/8" (9,53MM) E DEGRAUS EM TUBO DE AÇO 1 1/2" COM LARGURA DE 45CM E DISTANCIA EIXO A EIXO DE 30CM | B24: ESCADA DE MARINHEIRO | C24: CANAL PRINCIPAL - TRECHO "F"
B25: ESCADA DE SEGURANÇA EM AÇO | C25: CANAL SECUNDÁRIO - CS04
A26: ESCAVAÇÃO MECÂNICA DE VALA EM MAT.1A CAT. | B26: ESCAV. P/ EXEC. DE SEÇÃO DO CANAL EM MAT 1a CAT. C/ CONCHA INCLUSIVE REGULARIZAÇÃO DE TALUDES (a regularização será orçada no item1.1.61 regularização de taludes ) | C26: CANAL/RESERVATÓRIO - RS25
A27: ESC. MEC. CARGA TRANSP. MAT 1ª CAT DMT 50 A 200M C/E | B27: ESCAVAÇÃO MAT. DE 1A, C/T ATE 200m | C27: CERCA COM MOURÕES DE CONCRETO, SEÇÃO "T" PONTA INCLINADA, 7,5X7,5CM, ESPAÇAMENTO DE 3M, CRAVADOS 0,5M, COM 11 FIOS DE ARAME FARPADO Nº14 CLASSE 250 - FORNEC E COLOC.
A28: ESC. MEC. CARGA TRANSP. MAT 2A CAT DMT 800 A 1000M C/E | B28: ESCAVAÇÃO MAT. DE 2A C/T ATE 1000m | C28: CHAPISCO RUSTICO TRACO 1:3 (CIMENTO E AREIA), ESPESSURA 2CM, PREPARO MANUAL
A29: ESC. MEC. CARGA TRANSP. MAT 3A CAT DMT 800 A 1000M | B29: ESCAVAÇÃO MAT. DE 3A C/T ATE 1000m | C29: CHUVEIRO PLASTICO BRANCO SIMPLES - FORNECIMENTO E INSTALACAO
B30: ESCAVAÇÃO VALA, MAT. DE 1A, PROF. 1-2m, C/T ATE 200m | C30: CIMBRAMENTO DE MADEIRA
A31: ESCAV MEC.VALA N ESCORADA, MAT 1A, PROF. DE 1,5 A 3M, C/T ATE 200m | B31: ESCAVAÇÃO VALA, MAT. DE 1A, PROF. 2-3m, C/T ATE 200m | C31: COBERTURA COM TELHA DE FIBROCIMENTO ESTRUTURAL LARGURA ÚTIL 49CM OU 44CM, INCLUSO ACESSÓRIOS DE FIXAÇÃO E VEDAÇÃO
A32: ESCAV MEC.VALA N ESCORADA, MAT 1A, PROF. ATE 1,5M, C/T ATE 200m | B32: ESCAVAÇÃO VALA, MAT. DE 1A, PROF. ATE 1m, C/T ATE 200m | C32: COBERTURA COM TELHA DE FIBROCIMENTO ESTRUTURAL LARGURA ÚTIL 49CM OU 44CM, INCLUSO ACESSÓRIOS DE FIXAÇÃO E VEDAÇÃO
A33: ESCAVAÇÃO MEC. VALA N ESCORADA, MAT. DE 2A, PROF. 1-2m, C/T ATE 1000m | B33: ESCAVAÇÃO VALA, MAT. DE 2A, PROF. 1-2m, C/T ATE 1000m | C33: COLCHAO DE AREIA, INCLUSIVE MAO-DE-OBRA DE ESPALHAMENTO, TRANSPORTE COM CARRO DE MAO E FORNECIMENTO COMERCIAL
A34: ESCAVAÇÃO MEC. VALA N ESCORADA, MAT. DE 2A, PROF. 2-3m, C/T ATE 1000m | B34: ESCAVAÇÃO VALA, MAT. DE 2A, PROF. 2-3m, C/T ATE 1000m | C34: COMPORTA ENSECADEIRA EM 1 PAINEL DE AÇO DE 1420x1380mm
A35: ESCAVAÇÃO MEC. VALA N ESCORADA, MAT. DE 3A, C/T ATE 1000m | B35: ESCAVAÇÃO VALA, MAT. DE 3A, PROF. 1-2m, C/T ATE 1000m | C35: COMPORTA ENSECADEIRA EM 2 PAINEIS DE AÇO DE 1320x900mm
B36: ESCAVAÇÃO VALA, MAT. DE 3A, PROF. 2-3m, C/T ATE 1000m | C36: COMPORTA PLANA CIRCULAR C/PEDESTAL, DN=200MM - MOTORIZADA
B37: ESQUADRIAS DE ALUMÍNIO COM VIDRO | C37: COMPORTA PLANA CIRCULAR C/PEDESTAL, DN=300MM - MOTORIZADA
A38: FORMA MADEIRA COMP RESINADA 12MM P/ESTRUTURA REAPROV 2 VEZES - CORTE/MONTAGEM/ESCORAMENTO/DESFORMA | B38: FORMA PARA ESTRUTURAS | C38: COMPORTA PLANA CIRCULAR C/PEDESTAL, DN=400MM - MOTORIZADA
A39: FORMA PINHO 3A P/CONCRETO EM FUNDAÇÃO S/REAPROVEITAMENTO - CORTE/MONTAGEM/ESCORAMENTO/DESFORMA, NÃO INCLUÍDO DESMOLDANTE | B39: FORMA PARA FUNDAÇÕES | C39: COMPORTA PLANA CIRCULAR C/PEDESTAL, DN=700MM - MOTORIZADA
A40: estes itens serão desmembrados conforme a lista de material de aterramento de cada Estação | B40: FORNEC. E INSTAL. CABO NU COBRE, ENTERRADO, PARA ATERRAMENTO | C40: COMPORTA PLANA CIRCULAR C/PEDESTAL, DN=800MM - MOTORIZADA
B41: FORNEC. E INSTAL. CONEXÃO APARAFUS., CABO COBRE, P/ATERRAMENTO | C41: COMPORTA PLANA QUADRADA C/PEDESTAL 1000X1000MM
B42: FORNEC. E INSTAL. HASTE ATERRAMENTO DIAM. 3/4", 3M | C42: COMPORTA SETOR 1,10X1,90 - RAIO=2,00M COM. HIDRAUL. - COMPLETA
A43: FORNECIMENTO/ASSENTAMENTO DE MANTA GEOTEXTIL RT-31 (ANT OP-60) BIDIM | B43: FORNECIMENTO E COLOCAÇÃO DE BIDIM OP-30 | C43: COMPORTA SETOR 1,20X1,50 - RAIO=1,50M COM. HIDRAUL. - COMPLETA
A44: COLCHAO DE AREIA, INCLUSIVE MAO-DE-OBRA DE ESPALHAMENTO, TRANSPORTE COM CARRO DE MAO E FORNECIMENTO COMERCIAL | B44: FORNECIMENTO E EXECUÇÃO DE LEITO DE AREIA | C44: CONCRETO 1:4:8, CONCRETO MAGRO, C/ BRITA 1 E 2, C/BETONEIRA
A45: GUARDA-CORPO EM TUBO DE ACO GALVANIZADO 1 1/2" | B45: GUARDA-CORPO METÁLICO - FORNEC. E INSTAL. | C45: CONCRETO FCK= 15,0 MPA ( 1: 2,5:3) , INCLUIDO PREPARO MECANICO, LANÇAMENTO E ADENSAMENTO.
B46: INSTALAÇÕES HIDROSANITARIAS - INCL. APARELHOS E PEÇAS SANITÁRIAS - ESTAÇÕES DE BOMBEAMENTO | C46: CONCRETO USINADO, IMPORTADO, ESTRUTURAL FCK=20MPA INCLUS. TRANSPORTE HORIZONTAL ATÉ 20M (PROD. 2M3/H) EM CARRINHOS, ADENSAMENTO E ACABAMENTO
A47: RESERVATÓRIO DÁGUA DE FIBROCIMENTO CILÍNDRICO OU RETANGULAR, CAPACIDADE 1.000L - FORNECIMENTO E COLOCAÇÃO ( EXCLUSIVE TUBULAÇÕES E BOIA) | C47: Conector grampo de encaixe tipo KVS26 - Ref.: Burndy
A48: BANCA (TAMPO) DE MARMORE SINTETICO 120X60CM COM CUBA, VALVULA EM PLASTICO BRANCO 1", SIFAO PLASTICO TIPO COPO 1" E TORNEIRA CROMADA LONGA 1/2" OU 3/4" PARA PIA PADRAO POPULAR - FORNECIMENTO E INSTALACAO | C48: Conector para fixação de condutor em superfície plana tipo K2C23 Ref.: Burndy
A49: LAVATORIO EM LOUCA BRANCA, SEM COLUNA PADRAO POPULAR, COM TORNEIRA CROMADA POPULAR , SIFAO,VALVULA E ENGATE PLASTICO | C49: Conector para superfícies planas 16-70 mm2 tipo GB26 - ref.: Burndy
A50: PONTO DE AGUA FRIA PVC 3/4" - MEDIA 5,00M DE TUBO DE PVC ROSCAVEL AGUA FRIA 3/4" E 2 JOELHOS DE PVC ROSCAVEL 90GRAUS AGUA FRIA 3/4" - FORNECIMENTO E INSTALACAO | C50: Conector terminal cabo/barra 25-35 mm2 tipo QAIC-B - Ref.: Burndy
A51: CHUVEIRO PLASTICO BRANCO SIMPLES - FORNECIMENTO E INSTALACAO | C51: CONEXÕES DE FO.FO. PARA AS TOMADAS - DN=200MM
A52: TUBO PVC ESGOTO JS PREDIAL DN 40MM, INCLUSIVE CONEXOES - FORNECIMENTO E INSTALACAO | C52: CONEXÕES DE FO.FO. PARA AS TOMADAS - DN=300MM
A53: TUBO PVC ESGOTO PREDIAL DN 50MM, INCLUSIVE CONEXOES - FORNECIMENTO E INSTALACAO | C53: CONEXÕES DE FO.FO. PARA AS TOMADAS - DN=400MM
A54: VASO SANITARIO SIFONADO LOUÇA BRANCA PADRAO POPULAR, COM CONJUNTO PARA FIXAÇAO PARA VASO SANITÁRIO COM PARAFUSO, ARRUELA E BUCHA - FORNECIMENTO E INSTALACAO | C54: CONEXÕES DE FO.FO. PARA AS TOMADAS - DN=700MM
A55: TUBO PVC ESGOTO PREDIAL DN 100MM, INCLUSIVE CONEXOES - FORNECIMENTO E INSTALACAO | C55: CONEXÕES DE FO.FO. PARA AS TOMADAS - DN=800MM
A56: RALO SECO DE PVC 100X100MM SIMPLES - FORNECIMENTO E INSTALACAO | C56: CONEXÕES E PEÇAS ESPECIAIS DA TUBUL TR04
A57: RALO SIFONADO DE PVC 100X100MM SIMPLES - FORNECIMENTO E INSTALACAO | C57: CONEXÕES E PEÇAS ESPECIAIS DO SIFÃO SF02
A58: CAIXA DE INSPEÇÃO EM ALVENARIA DE TIJOLO MACIÇO 60X60X60CM, REVESTIDA INTERNAMENTO COM BARRA LISA (CIMENTO E AREIA, TRAÇO 1:4) E=2,0CM, COM TAMPA PRÉ-MOLDADA DE CONCRETO E FUNDO DE CONCRETO 15MPA TIPO C - ESCAVAÇÃO E CONFECÇÃO | C58: CX DE VÁLVULA/VISITAS/ENVELOP./DESCARGA DE FUNDO (SIFÃO SF02)
A59: FOSSA SEPTICA EM ALVENARIA DE TIJOLO CERAMICO MACICO DIMENSOES EXTERNAS 1,90X1,10X1,40M, 1.500 LITROS, REVESTIDA INTERNAMENTE COM BARRA LISA, COM TAMPA EM CONCRETO ARMADO COM ESPESSURA 8CM | C59: DESMATAMENTO/LIMPEZA TERRENOS C/EQUIP MECAN(TRATOR:1000M2/H)
A60: SUMIDOURO EM ALVENARIA DE TIJOLO CERAMICO MACIÇO DIAMETRO 1,40M E ALTURA 5,00M, COM TAMPA EM CONCRETO ARMADO DIAMETRO 1,60M E ESPESSURA 10CM | C60: Eletroduto de aço galvanizado com luva em uma das extremidades e protetor de rosca na outra diâm. 1” x 3000 mm Ref.: Mannesmann
B61: INSTALAÇÕES HIDROSANITARIAS - INCL. APARELHOS E PEÇAS SANITÁRIAS - EB05 | C61: EMBOCO PAULISTA (MASSA UNICA) TRACO 1:1:6 (CIMENTO, CAL E AREIA), ESPESSURA 2,0CM, PREPARO MANUAL
B62: INSTALAÇÕES HIDROSANITARIAS - INCL. APARELHOS E PEÇAS SANITÁRIAS - EN01 | C62: ENROCAMENTO MANUAL C/ PEDRA JOGADA-E/C/T/D ATE 1000m
A63: JANELA METÁLICA, TIPO BASCULANTE COM TELA DE PROTEÇÃO CONTRA ROEDORES | B63: JANELA METÁLICA TIPO BASCULANTE | C63: ESC. MEC. CARGA TRANSP. MAT 1ª CAT DMT 50 A 200M C/E
B64: JUNTA DE DIL. C/ SEL. A BASE DE POLIUR. MONOC. (1,5cm x 1,5cm) | C64: ESC. MEC. CARGA TRANSP. MAT 2A CAT DMT 800 A 1000M C/E
A65: JUNTA DILATACAO ELASTICA (PVC) P/ CONCRETO (FUGENBAND) O-220/6 PRESSAO ATE 30 MCA | B65: JUNTA TIPO FUGENBAND O-22 | C65: ESC. MEC. CARGA TRANSP. MAT 3A CAT DMT 800 A 1000M
A66: MOMENTO EXTRAORDINÁRIO DE TRANSP. DE MAT. DE 1A E/OU 2A | B66: MOMENTO EXTRAORDINÁRIO DE TRANSP. DE MAT. DE 1A E/OU 2A | C66: ESCADA TIPO MERINHEIRO COM MONTANTES EM CHAPA 3/8" (9,53MM) E DEGRAUS EM TUBO DE AÇO 1 1/2" COM LARGURA DE 45CM E DISTANCIA EIXO A EIXO DE 30CM
A67: MOMENTO EXTRAORDINÁRIO DE TRANSPORTE DE MAT. DE 3A | B67: MOMENTO EXTRAORDINÁRIO DE TRANSPORTE DE MAT. DE 3A | C67: ESCAV MEC.VALA N ESCORADA, MAT 1A, PROF. ATE 1,5M, C/T ATE 200m
B68: PERFIL METÁLICO COLOCADO COMO GUIA DE TRANSFORMADORES | C68: ESCAV MEC.VALA N ESCORADA, MAT 1A, PROF. DE 1,5 A 3M, C/T ATE 200m
A69: PINTURA LATEX ACRILICA AMBIENTES INTERNOS/EXTERNOS, DUAS DEMAOS | B69: PINTURA A BASE DE TINTA LÁTEX - 2 DEMÃOS | C69: ESCAVAÇÃO MEC. VALA N ESCORADA, MAT. DE 3A, C/T ATE 1000m
A70: PINTURA VERNIZ EM MADEIRA 2 DEMAOS | B70: PINTURA A BASE DE VERNIZ POLIURETANO - 2 DEMÃOS | C70: ESCAVAÇÃO MEC. VALA N ESCORADA, MAT. DE 2A, PROF. 2-3m, C/T ATE 1000m
A71: PISO CERAMICO GRES 1A PEI-4 30X30CM, ASSENTADO COM ARGAMASSA TRACO 1:4 (CIMENTO E AREIA) PREPARO MANUAL, COM REJUNTE EM CIMENTO COMUM | B71: PISO CERÂMICO | C71: ESCAVAÇÃO MECÂNICA DE VALA EM MAT.1A CAT.
A72: PISO CIMENTADO LISO DESEMPENADO, TRACO 1:3 (CIMENTO E AREIA), ESPESSURA 2,0CM, PREPARO MANUAL | B72: PISO CIMENTADO LISO | C72: ESCAVACAO, CARGA E TRANSPORTE DE MATERIAL DE 1A CATEGORIA, CAMINHO DE SERVICO REVESTIMENTO PRIMARIO, COM ESCAVADEIRA HIDRAULICA E CAMINHAO BASCULANTE 6 M3, DMT 800 ATE 1.000 M
A73: PISO DE BORRACHA PASTILHADO, ESPESSURA 7MM, ASSENTADO COM ARGAMASSA TRACO 1:3 (CIMENTO E AREIA) | B73: PISO DE BORRACHA PLURIGOMA, LISO | C73: ESTAÇÃO DE BOMBEAMENTO - EB05 (C/SUBESTAÇÃO)
B74: PORTA DE MADEIRA LISA, INCLUSIVE FERRAGENS | C74: ESTRUTURA DE ENTRADA DO CANAL/RESERVATÓRIO RS25
B75: PORTA METÁLICA, INCLUSIVE FERRAGENS | C75: ESTRUTURA DE ENTRADA DO SIFÃO SF02
B76: PORTÃO C/ARMAÇÃO DE FERRO E TELA TIPO QUADRADA | C76: ESTRUTURA DE SAÍDA DO SIFÃO SF02
B77: PORTÃO DE ALUMÍNIO LISO | C77: EXTRAVASOR - CANAL SECUNDÁRIO - CS04 (EX-17)
A78: REATERRO DE VALAS COMPACTACAO MECANICA, C/CONTR.DO GC >= 95% DO PN(C/COMPACTADOR SOLOS C/ PLACA VIBRATORIA MOTOR DIESEL/GASOLINA 7 A 10 HP) | B78: REATERRO COMPACTADO MECANICAMENTE, C/ CONTROLE | C78: EXTRAVASOR DO CANAL/RESERVATÓRIO RS25
A79: REATERRO DE VALA/CAVA SEM CONTROLE DE COMPACTAÇÃO , UTILIZANDO RETRO-ESCAVADEIRA E COMPACTACADOR VIBRATORIO COM MATERIAL REAPROVEITADO | B79: REATERRO COMPACTADO MECANICAMENTE, S/ CONTROLE | C79: EXTRAVASOR EX11 DO CANAL PRINCIPAL - TRECHO "F"
A80: EMBOCO PAULISTA (MASSA UNICA) TRACO 1:1:6 (CIMENTO, CAL E AREIA), ESPESSURA 2,0CM, PREPARO MANUAL | B80: REBOCO PAULISTA (MASSA ÚNICA) | C80: EXTRAVASOR EX12 DO CANAL PRINCIPAL - TRECHO "F"
A81: REGULARIZAÇÃO DE TALUDES | B81: REGULARIZAÇÃO DE TALUDES (RESERVATÓRIOS) | C81: EXTREMIDADE FO.FO., FLANGE E BOLSA, PN10, J.ELAST. DN=300MM
A82: REGULARIZAÇÃO DO SUBLEITO | B82: REGULARIZAÇÃO DO SUBLEITO | C82: Fazer Composição
A83: AZULEJO 1A 15X15CM FIXADO ARGAMASSA COLANTE, REJUNTAMENTO COM CIMENTO BRANCO | B83: REVESTIMENTO C/ AZULEJO BRANCO, DE 1A | C83: FORMA MADEIRA COMP RESINADA 12MM P/ESTRUTURA REAPROV 2 VEZES - CORTE/MONTAGEM/ESCORAMENTO/DESFORMA
A84: CONCRETO FCK= 15,0 MPA ( 1: 2,5:3) , INCLUIDO PREPARO MECANICO, LANÇAMENTO E ADENSAMENTO. | B84: REVESTIMENTO CONCRETO SIMPLES PARA CANAIS FCK=>15 MPa | C84: FORMA PINHO 3A P/CONCRETO EM FUNDAÇÃO S/REAPROVEITAMENTO - CORTE/MONTAGEM/ESCORAMENTO/DESFORMA, NÃO INCLUÍDO DESMOLDANTE
A85: MANTA TERMOPLÁSTICA, PEAD, GEOMEMBRANA TEXTURIZADA, E = 1,00 MM, NBR 15352 | B85: REVESTIMENTO EM GEOMEMBRANA DE PEAD, ESP=1mm, TEXT. NAS 2 FACES | C85: FORNEC. E INSTAL. CABO NU COBRE, ENTERRADO, PARA ATERRAMENTO
A86: ESCAVACAO, CARGA E TRANSPORTE DE MATERIAL DE 1A CATEGORIA, CAMINHO DE SERVICO REVESTIMENTO PRIMARIO, COM ESCAVADEIRA HIDRAULICA E CAMINHAO BASCULANTE 6 M3, DMT 800 ATE 1.000 M | B86: REVESTIMENTO PRIMÁRIO C/ MAT. DE JAZIDA, C/T ATE 1000m | C86: FORNEC. E INSTAL. CONEXÃO APARAFUS., CABO COBRE, P/ATERRAMENTO
A87: SOLEIRA DE CIMENTO ALISADO, LARGURA 15CM, COM IMPERMEABILIZANTE | B87: RODAPÉ DE CIMENTO LISO COM 15 cm DE ALTURA | C87: FORNEC. E INSTAL. HASTE ATERRAMENTO DIAM. 3/4", 3M
B88: TAMPAS E GRADES METÁLICAS | C88: FORNECIMENTO - HIDROMECÂNICOS
A89: TELADO COM ARMAÇÃO DE FERRO E TELA DE ARAME GALV FIO 12 BWG (2,77MM) MALHA 2" (5x5cm) QUADRADA INCLUSIVE PINTURA | B89: TELADO COM REQUADRO DE FERRO | C89: FORNECIMENTO DE MATERIAL ELÉTRICO PARA ATERRAMENTO
A90: TELADO COM REQUADRO DE FERRO E TELA DE ARAME GALV FIO 12 BWG (2,77MM) MALHA 2" (5x5cm) QUADRADA INCLUSIVE PINTURA | C90: FORNECIMENTO DE TUBOS DE FOFO PONTA/FLANGE P/TOMADAS D'ÁGUA
A91: FORNECIMENTO E ASSENTAMENTO DE TUBO DE CONCRETO ARMADO CLASSE PA-2 DN 800MM, JUNTA EM ARGAMASSA 1:3 CIMENTO:AREIA | B91: TUBO DE CONCRETO ARMADO CA-2, DIAM. 0,80M-FORNECIMENTO E ASSENT. | C91: FORNECIMENTO E ASSENTAMENTO DE TUBO DE CONCRETO ARMADO CLASSE PA-2 DN 1000MM, JUNTA EM ARGAMASSA 1:3 CIMENTO:AREIA
A92: FORNECIMENTO E ASSENTAMENTO DE TUBO DE CONCRETO ARMADO CLASSE PA-2 DN 1000MM, JUNTA EM ARGAMASSA 1:3 CIMENTO:AREIA | B92: TUBO DE CONCRETO ARMADO CA-2, DIAM. 1,00M-FORNECIMENTO E ASSENT. | C92: FORNECIMENTO E ASSENTAMENTO DE TUBO DE CONCRETO ARMADO CLASSE PA-2 DN 1200MM, JUNTA EM ARGAMASSA 1:3 CIMENTO:AREIA
A93: FORNECIMENTO E ASSENTAMENTO DE TUBO DE CONCRETO ARMADO CLASSE PA-2 DN 1200MM, JUNTA EM ARGAMASSA 1:3 CIMENTO:AREIA | B93: TUBO DE CONCRETO ARMADO CA-2, DIAM. 1,20M-FORNECIMENTO E ASSENT. | C93: FOSSA SEPTICA EM ALVENARIA DE TIJOLO CERAMICO MACICO DIMENSOES EXTERNA S 1,90X1,10X1,40M, 1.500 LITROS, REVESTIDA INTERNAMENTE COM BARRA LISA, COM TAMPA EM CONCRETO ARMADO COM ESPESSURA 8CM
C94: GRADE DE BARRAS FIXA - 1760x1830mm
C95: Grampo de aterramento haste/cabo - ø 3/4 " -70mm² - tipo GP6426
C96: GUARDA-CORPO EM TUBO DE ACO GALVANIZADO 1 1/2"
C97: Haste de aterramento tipo “copperweld” diâm. 3/4” x 1500 mm - Ref.: Burndy
C98: INSTALAÇÕES HIDROSANITARIAS - INCL. APARELHOS E PEÇAS SANITÁRIAS
C99: JANELA EM ALUMÍNIO ANODIZADO NA COR NATURAL, EM 1 FOLHA, TIPO MAXIM-AR,COM VIDRO CRISTAL 4mm 115x60cm
C100: JANELA EM ALUMÍNIO ANODIZADO NA COR NATURAL, EM 3 FOLHAS TIPO MAXIM-AR, COM VIDRO DE CRISTAL 4mm DE 330x120cm
C101: JANELA EM ALUMÍNIO ANODIZADO NA COR NATURAL, EM 3 FOLHAS, TIPO MAXIM-AR,COM VIDRO CRISTAL 4mm 327.5x120cm
C102: JANELA METÁLICA, TIPO BASCULANTE 100x120cm COM TELA DE PROTEÇÃO CONTRA ROEDORES
C103: JANELA METÁLICA, TIPO BASCULANTE 100x80cm COM TELA DE PROTEÇÃO CONTRA ROEDORES
C104: JUNTA DE DIL. C/ SEL. A BASE DE POLIUR. MONOC. (1,5cm x 1,5cm)
C105: JUNTA DE MONTAGEM, DN=800MMM
C106: JUNTA DILATACAO ELASTICA (PVC) P/ CONCRETO (FUGENBAND) O-220/6 PRESSAO ATE 30 MCA
C107: JUNTA DRESSER, ESTILO 38, DN=700MM
C108: JUNTA DRESSER, ESTILO 38, DN=800MM
C109: JUNTA GIBAULT DN=200MM
C110: JUNTA GIBAULT DN=300MM
C111: JUNTA GIBAULT DN=400MM
C112: LAVATORIO EM LOUCA BRANCA, SEM COLUNA PADRAO POPULAR, COM TORNEIRA CROMADA POPULAR , SIFAO,VALVULA E ENGATE PLASTICO
C113: MANTA TERMOPLÁSTICA, PEAD, GEOMEMBRANA TEXTURIZADA, E = 1,00 MM, NBR 15352
C114: Mistura despolarizante/redutora “ATERRAGEL”
C115: MOMENTO EXTRAORDINÁRIO DE TRANSP. DE MAT. DE 1A E/OU 2A
C116: MOMENTO EXTRAORDINÁRIO DE TRANSPORTE DE MAT. DE 3A
C117: MONT. COMP.PLANA, C/PEDESTAL E VOLANTE, 1,00 X 1,00M
C118: MONT. TUBO PVC RIGIDO, J/E, DEFOFO, DIAM.300MM
C119: MONTAGEM - HIDROMECÂNICOS
C120: MONTAGEM ATERRAMENTO
C121: MONTAGEM COMPORTA TIPO SEGMENTO
C122: MONTAGEM DE COMP. PLANA C/PEDESTAL DN=200MM - MOTORIZADA
C123: MONTAGEM DE COMP. PLANA C/PEDESTAL DN=300MM - MOTORIZADA
C124: MONTAGEM DE COMP. PLANA C/PEDESTAL DN=400MM - MOTORIZADA
C125: MONTAGEM DE COMPORTA PLANA C/PEDESTAL DN=700MM - MOTORIZADA
C126: MONTAGEM DE COMPORTA PLANA C/PEDESTAL DN=800MM - MOTORIZADA
C127: MONTAGEM DE GRADE DE PROTEÇÃO
C128: MONTAGEM DE REGISTRO DE GAVETA COM FLANGES FO.FO. DN 100
C129: MONTAGEM DE TALHA MANUAL C/MONOVIA CAP=1,0TON
C130: MONTAGEM DE VÁLVULA DE ADMISSÃO DE AR, DN=100MM
C131: MONTAGEM DE VÁLVULA TIPO BORBOLETA DN=800MM C/ATUADOR
C132: MONTAGEM DE VENTOSA DE TRIPLICE FUNÇÃO DN=150
C133: MONTAGEM REGISTRO DE GAVETA COM FLANGES FO.FO. DN=150MM
C134: MONTAGEM REGISTRO DE GAVETA COM FLANGES FO.FO. DN=300MM
C135: MONTAGEM REGISTRO GAVETA FO.FO. DN 200
C136: MONTAGEM TUBO FO.FO., P&F, PN-10, DIAM. 200MM (TOMADAS)
C137: MONTAGEM TUBO FO.FO., P&F, PN-10, DIAM. 300MM (TOMADAS)
C138: MONTAGEM TUBO FO.FO., P&F, PN-10, DIAM. 400MM (TOMADAS)
C139: MONTAGEM TUBO FO.FO., P&F, PN-10, DIAM. 700MM (TOMADAS)
C140: MONTAGEM TUBO FO.FO., P&F, PN-10, DIAM. 800MM (TOMADAS)
C141: MONTAGEM TUBUL. E PECAS DE AÇO CARBONO DN=1200MM C/TESTE HIDROST.
C142: OBRAS CIVIS
C143: PEDRA BRITADA BICA CORRIDA (NÃO CLASSIFICADA)
C144: PERFIL METÁLICO COLOCADO COMO GUIA DE TRANSFORMADORES
C145: PINTURA LATEX ACRILICA AMBIENTES INTERNOS/EXTERNOS, DUAS DEMAOS
C146: PINTURA VERNIZ EM MADEIRA 2 DEMAOS
C147: PISO CERAMICO GRES 1A PEI-4 30X30CM, ASSENTADO COM ARGAMASSA TRACO 1:4 (CIMENTO E AREIA) PREPARO MANUAL, COM REJUNTE EM CIMENTO COMUM
C148: PISO CIMENTADO LISO DESEMPENADO, TRACO 1:3 (CIMENTO E AREIA), ESPESSURA 2,0CM, PREPARO MANUAL
C149: PISO DE BORRACHA PASTILHADO, ESPESSURA 7MM, ASSENTADO COM ARGAMASSA TRACO 1:3 (CIMENTO E AREIA)
C150: PONTO DE AGUA FRIA PVC 3/4" - MEDIA 5,00M DE TUBO DE PVC ROSCAVEL AGUA FRIA 3/4" E 2 JOELHOS DE PVC ROSCAVEL 90GRAUS AGUA FRIA 3/4" - FORNECIMENTO E INSTALACAO
C151: PORTA DE MADEIRA EM CEDRO LISO INTERNO/EXTERNO DE 60x210cm, COM PINTURA À ÓLEO
C152: PORTA METÁLICA 80x210cm
C153: PORTÃO COM ARMAÇÃO DE FERRO E TELA TIPO QUADRADA DE 12mm BITOLA 12 BWG, 260x284cm EM 2 FOLHAS COM PINTURA ELETROSTÁTICA NA COR GRAFITE
C154: PORTÃO COM ARMAÇÃO DE FERRO E TELA TIPO QUADRADA DE 12mm BITOLA 12 BWG, 80x210cm COM PINTURA ELETROSTÁTICA NA COR GRAFITE
C155: PORTÃO EM CHAPA DE ALUMÍNIO ANODIZADO NA COR NATURAL, COM 4 FOLHAS, DE 300x294cm
C156: PREPARO MECANICO E LANÇAMENTO MANUAL DE CONCRETO CICLÓPICO 1:3:5, COM 30% DE PEDRA DE MÃO, CAVAS ATÉ 80CM DE LARGURA.
C157: PROTEÇÃO CATÓDICA EM TUBULAÇÃO DE AÇO
C158: RALO SECO DE PVC 100X100MM SIMPLES - FORNECIMENTO E INSTALACAO
C159: RALO SIFONADO DE PVC 100X100MM SIMPLES - FORNECIMENTO E INSTALACAO
C160: REATERRO DE VALA/CAVA SEM CONTROLE DE COMPACTAÇÃO , UTILIZANDO RETRO-ESCAVADEIRA E COMPACTACADOR VIBRATORIO COM MATERIAL REAPROVEITADO
C161: REATERRO DE VALAS COMPACTACAO MECANICA, C/CONTR.DO GC >= 95% DO PN(C/COMPACTADOR SOLOS C/ PLACA VIBRATORIA MOTOR DIESEL/GASOLINA 7 A 10 HP)
C162: REGULARIZAÇÃO DE TALUDES
C163: REGULARIZAÇÃO DO SUBLEITO
C164: RESERVATÓRIO DÁGUA DE FIBROCIMENTO CILÍNDRICO OU RETANGULAR, CAPACIDADE 1.000L - FORNECIMENTO E COLOCAÇÃO ( EXCLUSIVE TUBULAÇÕES E BOIA)
C165: RODAPÉ DE CIMENTO LISO COM 15 cm DE ALTURA
C166: SIFÃO SF02 - ITENS GLOBAIS
C167: SISTEMA VIÁRIO
C168: SUMIDOURO EM ALVENARIA DE TIJOLO CERAMICO MACIÇO DIAMETRO 1,40M E ALTURA 5,00M, COM TAMPA EM CONCRETO ARMADO DIAMETRO 1,60M E ESPESSURA 10CM
C169: TALHA MANUAL C/MONOVIA CAP=1 TON - COMPLETA
C170: TAMPAS E GRADES METÁLICAS
C171: TELADO COM ARMAÇÃO DE FERRO EM TELA TIPO QUADRADA DE 2", 140x150cm, COM PINTURA ELETROSTÁSTICA NA COR GRAFITE
C172: TELADO COM ARMAÇÃO DE FERRO EM TELA TIPO QUADRADA DE 2", 390x150cm, COM PINTURA ELETROSTÁSTICA NA COR GRAFITE
C173: TELADO COM ARMAÇÃO DE FERRO EM TELA TIPO QUADRADA DE 2", 60x150cm, COM PINTURA ELETROSTÁSTICA NA COR GRAFITE
C174: TELADO COM REQUADRO DE FERRO 337.5x60cm (TELA TIPO QUADRADA DE 12mm BITOLA 12 BWG), COM PINTURA ELETROSTÁTICA NA COR GRAFITE
C175: TELADO COM REQUADRO DE FERRO 377.5x60cm (TELA TIPO QUADRADA DE 12mm BITOLA 12 BWG), COM PINTURA ELETROSTÁTICA NA COR GRAFITE
C176: TOMADA D'ÁGUA TA50 - CANAL SECUNDÁRIO CS04
C177: TOMADA D'ÁGUA TA51 DO CANAL PRINCIPAL - TRECHO "F"
C178: TOMADAS D'ÁGUA- CANAL SECUNDÁRIO - CS04 (TS45,TS46,TS47,TS48eTS-48a)
C179: TOMADAS D'ÁGUA TA52 E TA53 DO CANAL/RESERVATÓRIO RS25
C180: TUBO PVC ESGOTO JS PREDIAL DN 40MM, INCLUSIVE CONEXOES - FORNECIMENTO E INSTALACAO
C181: TUBO PVC ESGOTO PREDIAL DN 100MM, INCLUSIVE CONEXOES - FORNECIMENTO E INSTALACAO
C182: TUBO PVC ESGOTO PREDIAL DN 50MM, INCLUSIVE CONEXOES - FORNECIMENTO E INSTALACAO
C183: TUBO PVC RIGIDO, J/E, DEFOFO, DIAM 300MM
C184: TUBOS DE AÇO CARBONO DN=1200MM C/TRATAMENTO
C185: TUBULAÇÃO DE RECALQUE - TR04
C186: VALETAS E SARJETAS
C187: VÁLV. ADMISSÃO DE AR, DN=100MM, PN-10
C188: VÁLV. GAVETA ACION. DIRETO VOLANTE, PN-10, DN= 150MM
C189: VÁLV. GAVETA ACION. DIRETO VOLANTE, PN-10, DN= 300MM
C190: VÁLV. GAVETA ACION. DIRETO VOLANTE, PN-10, DN=100MM
C191: VÁLV. GAVETA ACION. DIRETO VOLANTE, PN-10, DN=200MM
C192: VÁLVULA BORBOLETA C/ATUADOR ELÉTRICO DN=800MM PN-10
C193: VASO SANITARIO SIFONADO LOUÇA BRANCA PADRAO POPULAR, COM CONJUNTO PARA FIXAÇAO PARA VASO SANITÁRIO COM PARAFUSO, ARRUELA E BUCHA - FORNECIMENTO E INSTALACAO
C194: VENTOSA DE TRÍPLICE FUNÇÃO, FOFO, DN=150MM
C195: VISITA EM AÇO CARBONO

Sheet PLAN1 (hidden)
A1: 1.1 | D1: OBRAS CIVIS
B2: C.P.U.006 | D2: ESCAV MEC.VALA N ESCORADA, MAT 1A, PROF. ATE 1,5M, C/T ATE 200m | E2: m³ | F2: 180 | G2: 12.95 | H2: 15.28 | I2: 2750.4
B3: C.P.U.005 | D3: ESCAV MEC.VALA N ESCORADA, MAT 1A, PROF. DE 1,5 A 3M, C/T ATE 200m | E3: m³ | G3: 14.52 | H3: 17.13 | I3: 0
A4: 1.1.2 | B4: 73964/005 | C4: SINAPI | D4: REATERRO DE VALA/CAVA SEM CONTROLE DE COMPACTAÇÃO , UTILIZANDO RETRO-ESCAVADEIRA E COMPACTACADOR VIBRATORIO COM MATERIAL REAPROVEITADO | E4: m³ | F4: 12 | G4: 6.02 | H4: 7.1 | I4: 85.2
A5: 1.1.3 | B5: C.P.U.010 | D5: MOMENTO EXTRAORDINÁRIO DE TRANSP. DE MAT. DE 1A E/OU 2A | E5: m³ x km | F5: 700 | G5: 0.96940128 | H5: 1.14 | I5: 798
A6: 1.1.4 | B6: 73998/006 | C6: sinapi | D6: ALVENARIA DE BLOCOS DE CONCRETO ESTRUTURAL 19X19X39CM, ESPESSURA 19CM, ASSENTADOS COM ARGAMASSA TRACO 1:0,25:4 (CIMENTO, CAL E AREIA) | E6: m² | F6: 70 | G6: 59.26 | H6: 69.93 | I6: 4895.1
A7: 1.1.5 | B7: 74137/003 | C7: SINAPI | D7: CONCRETO USINADO, IMPORTADO, ESTRUTURAL FCK=20MPA INCLUS. TRANSPORTE HORIZONTAL ATÉ 20M (PROD. 2M3/H) EM CARRINHOS, ADENSAMENTO E ACABAMENTO | E7: m³ | F7: 62 | G7: 334.42 | H7: 394.62 | I7: 24466.44
A8: 1.1.6 | B8: 73936/011 | C8: sinapi | D8: CONCRETO 1:4:8, CONCRETO MAGRO, C/ BRITA 1 E 2, C/BETONEIRA | E8: m³ | F8: 13 | G8: 252.89 | H8: 298.41 | I8: 3879.33
B9: 00000031 | C9: SINAPI | D9: ACO CA-50 1/2" (12,70 MM) | E9: kg | F9: 1450 | G9: 3.94 | H9: 4.65 | I9: 6742.5
B10: 00000032 | C10: SINAPI | D10: ACO CA-50 1/4" (6,35 MM) | E10: kg | F10: 197 | G10: 4.57 | H10: 5.39 | I10: 1061.83
B11: 00000034 | C11: SINAPI | D11: ACO CA-50 3/8" (9,52 MM) | E11: kg | F11: 3578 | G11: 4.06 | H11: 4.79 | I11: 17138.62
A12: 1.1.8 | B12: 74075/001 | C12: SINAPI | D12: FORMA MADEIRA COMP RESINADA 12MM P/ESTRUTURA REAPROV 2 VEZES - CORTE/MONTAGEM/ESCORAMENTO/DESFORMA | E12: m² | F12: 219 | G12: 66.79 | H12: 78.81 | I12: 17259.39
A13: 1.1.9 | B13: 73685 | C13: sinapi | D13: CIMBRAMENTO DE MADEIRA | E13: m³ | F13: 19 | G13: 25.95 | H13: 30.62 | I13: 581.78
A14: 1.1.10 | B14: 74199/001 | C14: sinapi | D14: CHAPISCO RUSTICO TRACO 1:3 (CIMENTO E AREIA), ESPESSURA 2CM, PREPARO MANUAL | E14: m² | F14: 65 | G14: 23.62 | H14: 27.87 | I14: 1811.55
A15: 1.1.11 | B15: 73927/006 | C15: SINAPI | D15: EMBOCO PAULISTA (MASSA UNICA) TRACO 1:1:6 (CIMENTO, CAL E AREIA), ESPESSURA 2,0CM, PREPARO MANUAL | E15: m² | F15: 65 | G15: 16.49 | H15: 19.46 | I15: 1264.9
A16: 1.1.12 | B16: 73954/002 | C16: SINAPI | D16: PINTURA LATEX ACRILICA AMBIENTES INTERNOS/EXTERNOS, DUAS DEMAOS | E16: m² | F16: 65 | G16: 11.07 | H16: 13.06 | I16: 848.9
A17: 1.1.13 | B17: 79466 | C17: SINAPI | D17: PINTURA VERNIZ EM MADEIRA 2 DEMAOS | E17: m² | F17: 55 | G17: 7.34 | H17: 8.66 | I17: 476.3
A18: 1.1.14 | B18: 73922/003 | C18: SINAPI | D18: PISO CIMENTADO LISO DESEMPENADO, TRACO 1:3 (CIMENTO E AREIA), ESPESSURA 2,0CM, PREPARO MANUAL | E18: m² | F18: 38 | G18: 23.94 | H18: 28.25 | I18: 1073.5 | K18: quant. | L18: largura | M18: altura | N18: área | O18: a.total
B19: C.P.U.019 | D19: JANELA METÁLICA, TIPO BASCULANTE 100x120cm COM TELA DE PROTEÇÃO CONTRA ROEDORES | E19: m² | F19: 2.4 | G19: 240.9175 | H19: 284.28 | I19: 682.272 | K19: 2 | L19: 1 | M19: 1.2 | N19: 1.2 | O19: 2.4
B20: C.P.U.019 | D20: JANELA METÁLICA, TIPO BASCULANTE 100x80cm COM TELA DE PROTEÇÃO CONTRA ROEDORES | E20: m² | F20: 0.8 | G20: 240.9175 | H20: 284.28 | I20: 227.424 | K20: 1 | L20: 1 | M20: 0.8 | N20: 0.8 | O20: 0.8 | P20: 3.2
B21: 00004938 | C21: SINAPI | D21: PORTA METÁLICA 80x210cm | E21: unid | F21: 3 | G21: 319.2 | H21: 376.66 | I21: 1129.98 | K21: 3 | L21: 0.8 | M21: 2.1 | N21: 1.68 | O21: 5.04
A22: 17.1.17 | B22: 73634 | C22: sinapi | D22: COBERTURA COM TELHA DE FIBROCIMENTO ESTRUTURAL LARGURA ÚTIL 49CM OU 44CM, INCLUSO ACESSÓRIOS DE FIXAÇÃO E VEDAÇÃO | E22: m² | F22: 27 | G22: 86.95 | H22: 102.6 | I22: 2770.2
A23: 17.1.18 | B23: 74142/004 | C23: sinapi | D23: CERCA COM MOURÕES DE CONCRETO, SEÇÃO "T" PONTA INCLINADA, 7,5X7,5CM, ESPAÇAMENTO DE 3M, CRAVADOS 0,5M, COM 11 FIOS DE ARAME FARPADO Nº14 CLASSE 250 - FORNEC E COLOC. | E23: m | F23: 50 | G23: 26.65 | H23: 31.45 | I23: 1572.5
A24: 1.1.17 | B24: 73634 | C24: sinapi | D24: COBERTURA COM TELHA DE FIBROCIMENTO ESTRUTURAL LARGURA ÚTIL 49CM OU 44CM, INCLUSO ACESSÓRIOS DE FIXAÇÃO E VEDAÇÃO | E24: m² | F24: 27 | G24: 86.95 | H24: 102.6 | I24: 2770.2
A25: 1.1.18 | B25: 74142/004 | C25: sinapi | D25: CERCA COM MOURÕES DE CONCRETO, SEÇÃO "T" PONTA INCLINADA, 7,5X7,5CM, ESPAÇAMENTO DE 3M, CRAVADOS 0,5M, COM 11 FIOS DE ARAME FARPADO Nº14 CLASSE 250 - FORNEC E COLOC. | E25: m | F25: 50 | G25: 26.65 | H25: 31.45 | I25: 1572.5
A26: 1.2 | D26: FORNECIMENTO - HIDROMECÂNICOS
A27: 1.2.1 | D27: COMPORTA ENSECADEIRA EM 2 PAINEIS DE AÇO DE 1320x900mm | E27: cj | F27: 2 | H27: 0 | I27: 0
A28: 1.2.2 | D28: COMPORTA SETOR 1,10X1,90 - RAIO=2,00M COM. HIDRAUL. - COMPLETA | E28: cj | F28: 1 | H28: 0 | I28: 0
A29: 1.3 | D29: MONTAGEM - HIDROMECÂNICOS
A30: 1.3.1 | D30: MONTAGEM COMPORTA TIPO SEGMENTO | E30: cj | F30: 1 | H30: 0 | I30: 0
A31: 2.0 | D31: CANAL PRINCIPAL - TRECHO "F" | F31: R$ | G31: 6288174.772
A32: 2.1 | D32: OBRAS CIVIS
A33: 2.1.1 | B33: 73859/001 | C33: SINAPI | D33: DESMATAMENTO/LIMPEZA TERRENOS C/EQUIP MECAN(TRATOR:1000M2/H) | E33: m² | F33: 300000 | G33: 0.21 | H33: 0.25 | I33: 75000
A34: 2.1.2 | B34: C.P.U.010 | D34: MOMENTO EXTRAORDINÁRIO DE TRANSP. DE MAT. DE 1A E/OU 2A | E34: m³ x km | F34: 698230 | G34: 0.96940128 | H34: 1.14 | I34: 795982.2
A35: 2.1.3 | B35: C.P.U.011 | D35: MOMENTO EXTRAORDINÁRIO DE TRANSPORTE DE MAT. DE 3A | E35: m³ x km | F35: 4500 | G35: 1.182566 | H35: 1.4 | I35: 6300
A36: 2.1.4 | B36: 2 S 04 001 00 | C36: sicro | D36: ESCAVAÇÃO MECÂNICA DE VALA EM MAT.1A CAT. | E36: m³ | F36: 10248 | G36: 4.65 | H36: 5.49 | I36: 56261.52
B37: C.P.U.012 | D37: REGULARIZAÇÃO DE TALUDES | E37: m² | F37: 17534.8 | G37: 0.24874 | H37: 0.29 | I37: 5085.092
A38: 2.1.5 | B38: 2 S 01 100 22 | C38: SICRO | D38: ESC. MEC. CARGA TRANSP. MAT 1ª CAT DMT 50 A 200M C/E | E38: m³ | F38: 65604 | G38: 4.15 | H38: 4.9 | I38: 321459.6
A39: 2.1.6 | B39: 2 S 01 101 26 | C39: SICRO | D39: ESC. MEC. CARGA TRANSP. MAT 2A CAT DMT 800 A 1000M C/E | E39: m³ | F39: 396 | G39: 7.5 | H39: 8.85 | I39: 3504.6
A40: 2.1.7 | B40: 2 S 01 102 06 | C40: SICRO | D40: ESC. MEC. CARGA TRANSP. MAT 3A CAT DMT 800 A 1000M | E40: m³ | F40: 1080 | G40: 22.6 | H40: 26.67 | I40: 28803.6
A41: 2.1.8 | B41: C.P.U.001 | D41: ATERRO COMPACTADO MECANICAMICAMENTE EM CAMADAS DE 20CM, C/CONT., MAT. JAZIDA, C/T ATE 1000 m - 95% PN | E41: m³ | F41: 165384 | G41: 17.23 | H41: 20.33 | I41: 3362256.72
A42: 2.1.9 | B42: C.P.U.002 | D42: ATERRO COMPACTADO, EM CAMADA DE 20 CM C/ CONTROLE., C/ REAPROV. DE MATERIAL (SOLOS COLAPSÍVEIS - 100% PN) C/T ATÉ 200 m | E42: m³ | F42: 64038 | G42: 9.72 | H42: 11.47 | I42: 734515.86
A43: 2.1.10 | B43: 72829 | C43: SINAPI | D43: ESCAVACAO, CARGA E TRANSPORTE DE MATERIAL DE 1A CATEGORIA, CAMINHO DE SERVICO REVESTIMENTO PRIMARIO, COM ESCAVADEIRA HIDRAULICA E CAMINHAO BASCULANTE 6 M3, DMT 800 ATE 1.000 M | E43: m³ | F43: 1826 | G43: 4.17 | H43: 4.92 | I43: 8983.92
A44: 2.1.11 | B44: 73406 | C44: SINAPI | D44: CONCRETO FCK= 15,0 MPA ( 1: 2,5:3) , INCLUIDO PREPARO MECANICO, LANÇAMENTO E ADENSAMENTO. | E44: m³ | F44: 1166 | G44: 374.09 | H44: 441.43 | I44: 514707.38
A45: 2.1.12 | B45: 25871 | C45: SINAPI | D45: MANTA TERMOPLÁSTICA, PEAD, GEOMEMBRANA TEXTURIZADA, E = 1,00 MM, NBR 15352 | E45: m² | F45: 21846 | G45: 14.56 | H45: 17.18 | I45: 375314.28
A46: 3.0 | D46: EXTRAVASOR EX11 DO CANAL PRINCIPAL - TRECHO "F" | F46: R$ | G46: 29940.83
A47: 3.1 | D47: OBRAS CIVIS
B48: C.P.U.006 | D48: ESCAV MEC.VALA N ESCORADA, MAT 1A, PROF. ATE 1,5M, C/T ATE 200m | E48: m³ | F48: 22 | G48: 12.95 | H48: 15.28 | I48: 336.16
B49: C.P.U.005 | D49: ESCAV MEC.VALA N ESCORADA, MAT 1A, PROF. DE 1,5 A 3M, C/T ATE 200m | E49: m³ | F49: 24 | G49: 14.52 | H49: 17.13 | I49: 411.12
A50: 3.1.2 | B50: 73964/005 | C50: SINAPI | D50: REATERRO DE VALA/CAVA SEM CONTROLE DE COMPACTAÇÃO , UTILIZANDO RETRO-ESCAVADEIRA E COMPACTACADOR VIBRATORIO COM MATERIAL REAPROVEITADO | E50: m³ | F50: 9 | G50: 6.02 | H50: 7.1 | I50: 63.9
A51: 3.1.3 | B51: 74075/001 | C51: SINAPI | D51: FORMA MADEIRA COMP RESINADA 12MM P/ESTRUTURA REAPROV 2 VEZES - CORTE/MONTAGEM/ESCORAMENTO/DESFORMA | E51: m² | F51: 92 | G51: 66.79 | H51: 78.81 | I51: 7250.52
A52: 3.1.4 | B52: 73685 | C52: sinapi | D52: CIMBRAMENTO DE MADEIRA | E52: m³ | F52: 9 | G52: 25.95 | H52: 30.62 | I52: 275.58
A53: 3.1.5 | B53: 74137/003 | C53: SINAPI | D53: CONCRETO USINADO, IMPORTADO, ESTRUTURAL FCK=20MPA INCLUS. TRANSPORTE HORIZONTAL ATÉ 20M (PROD. 2M3/H) EM CARRINHOS, ADENSAMENTO E ACABAMENTO | E53: m³ | F53: 16 | G53: 334.42 | H53: 394.62 | I53: 6313.92
A54: 3.1.6 | B54: 73936/011 | C54: sinapi | D54: CONCRETO 1:4:8, CONCRETO MAGRO, C/ BRITA 1 E 2, C/BETONEIRA | E54: m³ | F54: 1 | G54: 252.89 | H54: 298.41 | I54: 298.41
A55: 3.1.7 | B55: 6105 | C55: sinapi | D55: PREPARO MECANICO E LANÇAMENTO MANUAL DE CONCRETO CICLÓPICO 1:3:5, COM 30% DE PEDRA DE MÃO, CAVAS ATÉ 80CM DE LARGURA. | E55: m³ | F55: 9 | G55: 249.14 | H55: 293.99 | I55: 2645.91
B56: 00000031 | C56: SINAPI | D56: ACO CA-50 1/2" (12,70 MM) | E56: kg | F56: 495 | G56: 3.94 | H56: 4.65 | I56: 2301.75
B57: 00000032 | C57: SINAPI | D57: ACO CA-50 1/4" (6,35 MM) | E57: kg | F57: 188 | G57: 4.57 | H57: 5.39 | I57: 1013.32
B58: 00000034 | C58: SINAPI | D58: ACO CA-50 3/8" (9,52 MM) | E58: kg | F58: 1365 | G58: 4.06 | H58: 4.79 | I58: 6538.35
A59: 3.1.9 | B59: C.P.U.014 | D59: FORNECIMENTO E ASSENTAMENTO DE TUBO DE CONCRETO ARMADO CLASSE PA-2 DN 1000MM, JUNTA EM ARGAMASSA 1:3 CIMENTO:AREIA | E59: m | F59: 7 | G59: 178.3 | H59: 210.39 | I59: 1472.73
A60: 3.1.10 | B60: C.P.U.004 | D60: ENROCAMENTO MANUAL C/ PEDRA JOGADA-E/C/T/D ATE 1000m | E60: m³ | F60: 6 | G60: 143.95 | H60: 169.86 | I60: 1019.16
A61: 3.2 | D61: FORNECIMENTO - HIDROMECÂNICOS
A62: 3.2.1 | D62: COMPORTA PLANA QUADRADA C/PEDESTAL 1000X1000MM | E62: cj | F62: 1 | H62: 0 | I62: 0
A63: 3.3 | D63: MONTAGEM - HIDROMECÂNICOS
A64: 3.3.1 | D64: MONT. COMP.PLANA, C/PEDESTAL E VOLANTE, 1,00 X 1,00M | E64: un | F64: 1 | H64: 0 | I64: 0
A65: 4.0 | D65: EXTRAVASOR EX12 DO CANAL PRINCIPAL - TRECHO "F" | F65: R$ | G65: 37325.04
A66: 4.1 | D66: OBRAS CIVIS
B67: C.P.U.006 | D67: ESCAV MEC.VALA N ESCORADA, MAT 1A, PROF. ATE 1,5M, C/T ATE 200m | E67: m³ | F67: 33 | G67: 12.95 | H67: 15.28 | I67: 504.24
B68: C.P.U.005 | D68: ESCAV MEC.VALA N ESCORADA, MAT 1A, PROF. DE 1,5 A 3M, C/T ATE 200m | E68: m³ | F68: 38 | G68: 14.52 | H68: 17.13 | I68: 650.94
A69: 4.1.2 | B69: 73964/005 | C69: SINAPI | D69: REATERRO DE VALA/CAVA SEM CONTROLE DE COMPACTAÇÃO , UTILIZANDO RETRO-ESCAVADEIRA E COMPACTACADOR VIBRATORIO COM MATERIAL REAPROVEITADO | E69: m³ | F69: 13 | G69: 6.02 | H69: 7.1 | I69: 92.3
A70: 4.1.3 | B70: C.P.U.010 | D70: MOMENTO EXTRAORDINÁRIO DE TRANSP. DE MAT. DE 1A E/OU 2A | E70: m³ x km | F70: 241 | G70: 0.96940128 | H70: 1.14 | I70: 274.74
A71: 4.1.4 | B71: 74075/001 | C71: SINAPI | D71: FORMA MADEIRA COMP RESINADA 12MM P/ESTRUTURA REAPROV 2 VEZES - CORTE/MONTAGEM/ESCORAMENTO/DESFORMA | E71: m² | F71: 122 | G71: 66.79 | H71: 78.81 | I71: 9614.82
A72: 4.1.5 | B72: 73685 | C72: sinapi | D72: CIMBRAMENTO DE MADEIRA | E72: m³ | F72: 10 | G72: 25.95 | H72: 30.62 | I72: 306.2
A73: 4.1.6 | B73: 74137/003 | C73: SINAPI | D73: CONCRETO USINADO, IMPORTADO, ESTRUTURAL FCK=20MPA INCLUS. TRANSPORTE HORIZONTAL ATÉ 20M (PROD. 2M3/H) EM CARRINHOS, ADENSAMENTO E ACABAMENTO | E73: m³ | F73: 17 | G73: 334.42 | H73: 394.62 | I73: 6708.54
A74: 4.1.7 | B74: 73936/011 | C74: sinapi | D74: CONCRETO 1:4:8, CONCRETO MAGRO, C/ BRITA 1 E 2, C/BETONEIRA | E74: m³ | F74: 1 | G74: 252.89 | H74: 298.41 | I74: 298.41
A75: 4.1.8 | B75: 6105 | C75: sinapi | D75: PREPARO MECANICO E LANÇAMENTO MANUAL DE CONCRETO CICLÓPICO 1:3:5, COM 30% DE PEDRA DE MÃO, CAVAS ATÉ 80CM DE LARGURA. | E75: m³ | F75: 18 | G75: 249.14 | H75: 293.99 | I75: 5291.82
B76: 00000031 | C76: SINAPI | D76: ACO CA-50 1/2" (12,70 MM) | E76: kg | F76: 545 | G76: 3.94 | H76: 4.65 | I76: 2534.25
B77: 00000032 | C77: SINAPI | D77: ACO CA-50 1/4" (6,35 MM) | E77: kg | F77: 236 | G77: 4.57 | H77: 5.39 | I77: 1272.04
B78: 00000034 | C78: SINAPI | D78: ACO CA-50 3/8" (9,52 MM) | E78: kg | F78: 1433 | G78: 4.06 | H78: 4.79 | I78: 6864.07
A79: 4.1.10 | B79: C.P.U.014 | D79: FORNECIMENTO E ASSENTAMENTO DE TUBO DE CONCRETO ARMADO CLASSE PA-2 DN 1000MM, JUNTA EM ARGAMASSA 1:3 CIMENTO:AREIA | E79: m | F79: 9 | G79: 178.3 | H79: 210.39 | I79: 1893.51
A80: 4.1.11 | B80: C.P.U.004 | D80: ENROCAMENTO MANUAL C/ PEDRA JOGADA-E/C/T/D ATE 1000m | E80: m³ | F80: 6 | G80: 143.95 | H80: 169.86 | I80: 1019.16
A81: 4.2 | D81: FORNECIMENTO - HIDROMECÂNICOS
A82: 4.2.1 | D82: COMPORTA PLANA QUADRADA C/PEDESTAL 1000X1000MM | E82: cj | F82: 1 | H82: 0 | I82: 0
A83: 4.3 | D83: MONTAGEM - HIDROMECÂNICOS
A84: 4.3.1 | D84: MONT. COMP.PLANA, C/PEDESTAL E VOLANTE, 1,00 X 1,00M | E84: un | F84: 1 | H84: 0 | I84: 0
A85: 5.0 | D85: TOMADA D'ÁGUA TA51 DO CANAL PRINCIPAL - TRECHO "F" | F85: R$ | G85: 25329.86
A86: 5.1 | D86: OBRAS CIVIS
A87: 5.1.1 | B87: C.P.U.010 | D87: MOMENTO EXTRAORDINÁRIO DE TRANSP. DE MAT. DE 1A E/OU 2A | E87: m³ x km | F87: 393 | G87: 0.96940128 | H87: 1.14 | I87: 448.02
B88: C.P.U.005 | D88: ESCAV MEC.VALA N ESCORADA, MAT 1A, PROF. DE 1,5 A 3M, C/T ATE 200m | E88: m³ | F88: 125 | G88: 14.52 | H88: 17.13 | I88: 2141.25
A89: 5.1.3 | B89: 76444/002 | C89: SINAPI | D89: REATERRO DE VALAS COMPACTACAO MECANICA, C/CONTR.DO GC >= 95% DO PN(C/COMPACTADOR SOLOS C/ PLACA VIBRATORIA MOTOR DIESEL/GASOLINA 7 A 10 HP) | E89: m³ | F89: 49 | G89: 10.68 | H89: 12.6 | I89: 617.4
A90: 5.1.4 | B90: 73964/005 | C90: SINAPI | D90: REATERRO DE VALA/CAVA SEM CONTROLE DE COMPACTAÇÃO , UTILIZANDO RETRO-ESCAVADEIRA E COMPACTACADOR VIBRATORIO COM MATERIAL REAPROVEITADO | E90: m³ | F90: 33 | G90: 6.02 | H90: 7.1 | I90: 234.3
A91: 5.1.5 | B91: C.P.U.001 | D91: ATERRO COMPACTADO MECANICAMICAMENTE EM CAMADAS DE 20CM, C/CONT., MAT. JAZIDA, C/T ATE 1000 m - 95% PN | E91: m³ | F91: 12 | G91: 17.23 | H91: 20.33 | I91: 243.96
A92: 5.1.6 | B92: 74137/003 | C92: SINAPI | D92: CONCRETO USINADO, IMPORTADO, ESTRUTURAL FCK=20MPA INCLUS. TRANSPORTE HORIZONTAL ATÉ 20M (PROD. 2M3/H) EM CARRINHOS, ADENSAMENTO E ACABAMENTO | E92: m³ | F92: 15 | G92: 334.42 | H92: 394.62 | I92: 5919.3
A93: 5.1.7 | B93: 73936/011 | C93: sinapi | D93: CONCRETO 1:4:8, CONCRETO MAGRO, C/ BRITA 1 E 2, C/BETONEIRA | E93: m³ | F93: 1 | G93: 252.89 | H93: 298.41 | I93: 298.41
B94: 00000031 | C94: SINAPI | D94: ACO CA-50 1/2" (12,70 MM) | E94: kg | F94: 223 | G94: 3.94 | H94: 4.65 | I94: 1036.95
B95: 00000032 | C95: SINAPI | D95: ACO CA-50 1/4" (6,35 MM) | E95: kg | F95: 45 | G95: 4.57 | H95: 5.39 | I95: 242.55
B96: 00000034 | C96: SINAPI | D96: ACO CA-50 3/8" (9,52 MM) | E96: kg | F96: 1177 | G96: 4.06 | H96: 4.79 | I96: 5637.83
A97: 5.1.9 | B97: 74075/001 | C97: SINAPI | D97: FORMA MADEIRA COMP RESINADA 12MM P/ESTRUTURA REAPROV 2 VEZES - CORTE/MONTAGEM/ESCORAMENTO/DESFORMA | E97: m² | F97: 104 | G97: 66.79 | H97: 78.81 | I97: 8196.24
A98: 5.1.10 | B98: 73685 | C98: sinapi | D98: CIMBRAMENTO DE MADEIRA | E98: m³ | F98: 6 | G98: 25.95 | H98: 30.62 | I98: 183.72
A99: 5.1.11 | B99: C.P.U.003 | D99: CAIXA DE BRITA PARA DRENAGEM MEDINDO 50CMX50CMX50CM | E99: un | F99: 1 | G99: 17.71875 | H99: 20.91 | I99: 20.91
A100: 5.1.12 | B100: 73615 | C100: SINAPI | D100: COLCHAO DE AREIA, INCLUSIVE MAO-DE-OBRA DE ESPALHAMENTO, TRANSPORTE COM CARRO DE MAO E FORNECIMENTO COMERCIAL | E100: m³ | F100: 1 | G100: 92.39 | H100: 109.02 | I100: 109.02
A101: 5.2 | D101: FORNECIMENTO - HIDROMECÂNICOS
A102: 5.2.1 | D102: COMPORTA PLANA CIRCULAR C/PEDESTAL, DN=200MM - MOTORIZADA | E102: cj | F102: 1 | H102: 0 | I102: 0
A103: 5.2.2 | D103: CONEXÕES DE FO.FO. PARA AS TOMADAS - DN=200MM | E103: VB | F103: 1 | H103: 0 | I103: 0
A104: 5.2.3 | D104: FORNECIMENTO DE TUBOS DE FOFO PONTA/FLANGE P/TOMADAS D'ÁGUA | E104: VB | F104: 1 | H104: 0 | I104: 0
A105: 5.2.4 | D105: JUNTA GIBAULT DN=200MM | E105: un | F105: 1 | H105: 0 | I105: 0
A106: 5.2 | D106: MONTAGEM - HIDROMECÂNICOS
A107: 5.3.1 | D107: MONTAGEM DE COMP. PLANA C/PEDESTAL DN=200MM - MOTORIZADA | E107: un | F107: 1 | H107: 0 | I107: 0
A108: 5.3.2 | D108: MONTAGEM TUBO FO.FO., P&F, PN-10, DIAM. 200MM (TOMADAS) | E108: m | F108: 8 | H108: 0 | I108: 0
A109: 6.0 | D109: ESTRUTURA DE ENTRADA DO SIFÃO SF02 | F109: R$ | G109: 55081.356
A110: 6.1 | D110: OBRAS CIVIS
A111: 6.1.1 | B111: 74137/003 | C111: SINAPI | D111: CONCRETO USINADO, IMPORTADO, ESTRUTURAL FCK=20MPA INCLUS. TRANSPORTE HORIZONTAL ATÉ 20M (PROD. 2M3/H) EM CARRINHOS, ADENSAMENTO E ACABAMENTO | E111: m³ | F111: 52 | G111: 334.42 | H111: 394.62 | I111: 20520.24
A112: 6.1.2 | B112: 73936/011 | C112: sinapi | D112: CONCRETO 1:4:8, CONCRETO MAGRO, C/ BRITA 1 E 2, C/BETONEIRA | E112: m³ | F112: 3 | G112: 252.89 | H112: 298.41 | I112: 895.23
B113: 00000031 | C113: SINAPI | D113: ACO CA-50 1/2" (12,70 MM) | E113: kg | F113: 535 | G113: 3.94 | H113: 4.65 | I113: 2487.75
B114: 00000032 | C114: SINAPI | D114: ACO CA-50 1/4" (6,35 MM) | E114: kg | F114: 263 | G114: 4.57 | H114: 5.39 | I114: 1417.57
B115: 00000034 | C115: SINAPI | D115: ACO CA-50 3/8" (9,52 MM) | E115: kg | F115: 3362 | G115: 4.06 | H115: 4.79 | I115: 16103.98
A116: 6.1.4 | B116: 74075/001 | C116: SINAPI | D116: FORMA MADEIRA COMP RESINADA 12MM P/ESTRUTURA REAPROV 2 VEZES - CORTE/MONTAGEM/ESCORAMENTO/DESFORMA | E116: m² | F116: 128 | G116: 66.79 | H116: 78.81 | I116: 10087.68
A117: 6.1.5 | B117: 73685 | C117: sinapi | D117: CIMBRAMENTO DE MADEIRA | E117: m³ | F117: 11 | G117: 25.95 | H117: 30.62 | I117: 336.82
A118: 6.1.6 | B118: 73631 | C118: sinapi | D118: GUARDA-CORPO EM TUBO DE ACO GALVANIZADO 1 1/2" | E118: m² | F118: 14.3 | G118: 191.54 | H118: 226.02 | I118: 3232.086
A119: 6.1.7 | D119: TAMPAS E GRADES METÁLICAS | E119: kg | F119: 368 | H119: 0 | I119: 0
A120: 6.2 | D120: FORNECIMENTO - HIDROMECÂNICOS
A121: 6.2.1 | D121: TALHA MANUAL C/MONOVIA CAP=1 TON - COMPLETA | E121: un | F121: 1 | H121: 0 | I121: 0
A122: 6.2.2 | D122: GRADE DE BARRAS FIXA - 1760x1830mm | E122: un | F122: 1 | H122: 0 | I122: 0
A123: 6.3 | D123: MONTAGEM - HIDROMECÂNICOS
A124: 6.3.1 | D124: MONTAGEM DE TALHA MANUAL C/MONOVIA CAP=1,0TON | E124: un | F124: 1 | H124: 0 | I124: 0
A125: 6.3.2 | D125: MONTAGEM DE GRADE DE PROTEÇÃO | E125: m² | F125: 3 | H125: 0 | I125: 0
A126: 7.0 | D126: SIFÃO SF02 - ITENS GLOBAIS | F126: R$ | G126: 1969513.32
A127: 7.1 | D127: OBRAS CIVIS
A128: 7.1.1 | B128: 73859/001 | C128: SINAPI | D128: DESMATAMENTO/LIMPEZA TERRENOS C/EQUIP MECAN(TRATOR:1000M2/H) | E128: m² | F128: 186000 | G128: 0.21 | H128: 0.25 | I128: 46500
A129: 7.1.2 | B129: C.P.U.010 | D129: MOMENTO EXTRAORDINÁRIO DE TRANSP. DE MAT. DE 1A E/OU 2A | E129: m³ x km | F129: 117603 | G129: 0.96940128 | H129: 1.14 | I129: 134067.42
A130: 7.1.3 | B130: C.P.U.011 | D130: MOMENTO EXTRAORDINÁRIO DE TRANSPORTE DE MAT. DE 3A | E130: m³ x km | F130: 31825 | G130: 1.182566 | H130: 1.4 | I130: 44555
B131: C.P.U.006 | D131: ESCAV MEC.VALA N ESCORADA, MAT 1A, PROF. ATE 1,5M, C/T ATE 200m | E131: m³ | F131: 5750 | G131: 12.95 | H131: 15.28 | I131: 87860
B132: C.P.U.005 | D132: ESCAV MEC.VALA N ESCORADA, MAT 1A, PROF. DE 1,5 A 3M, C/T ATE 200m | E132: m³ | F132: 6471 | G132: 14.52 | H132: 17.13 | I132: 110848.23
A133: 7.1.5 | B133: C.P.U.008 | D133: ESCAVAÇÃO MEC. VALA N ESCORADA, MAT. DE 2A, PROF. 2-3m, C/T ATE 1000m | E133: m³ | F133: 10693 | G133: 15.31 | H133: 18.07 | I133: 193222.51
A134: 7.1.6 | B134: C.P.U.009 | D134: ESCAVAÇÃO MEC. VALA N ESCORADA, MAT. DE 3A, C/T ATE 1000m | E134: m³ | F134: 7638 | G134: 60.64 | H134: 71.56 | I134: 546575.28
A135: 7.1.7 | B135: 76444/002 | C135: SINAPI | D135: REATERRO DE VALAS COMPACTACAO MECANICA, C/CONTR.DO GC >= 95% DO PN(C/COMPACTADOR SOLOS C/ PLACA VIBRATORIA MOTOR DIESEL/GASOLINA 7 A 10 HP) | E135: m³ | F135: 5831 | G135: 10.68 | H135: 12.6 | I135: 73470.6
A136: 7.1.8 | B136: 73964/005 | C136: SINAPI | D136: REATERRO DE VALA/CAVA SEM CONTROLE DE COMPACTAÇÃO , UTILIZANDO RETRO-ESCAVADEIRA E COMPACTACADOR VIBRATORIO COM MATERIAL REAPROVEITADO | E136: m³ | F136: 21150 | G136: 6.02 | H136: 7.1 | I136: 150165
A137: 7.1.9 | B137: C.P.U.001 | D137: ATERRO COMPACTADO MECANICAMICAMENTE EM CAMADAS DE 20CM, C/CONT., MAT. JAZIDA, C/T ATE 1000 m - 95% PN | E137: m³ | F137: 22394 | G137: 17.23 | H137: 20.33 | I137: 455270.02
A138: 7.1.10 | B138: 73615 | C138: SINAPI | D138: COLCHAO DE AREIA, INCLUSIVE MAO-DE-OBRA DE ESPALHAMENTO, TRANSPORTE COM CARRO DE MAO E FORNECIMENTO COMERCIAL | E138: m³ | F138: 661 | G138: 92.39 | H138: 109.02 | I138: 72062.22
A139: 7.1.11 | B139: 72829 | C139: SINAPI | D139: ESCAVACAO, CARGA E TRANSPORTE DE MATERIAL DE 1A CATEGORIA, CAMINHO DE SERVICO REVESTIMENTO PRIMARIO, COM ESCAVADEIRA HIDRAULICA E CAMINHAO BASCULANTE 6 M3, DMT 800 ATE 1.000 M | E139: m³ | F139: 11162 | G139: 4.17 | H139: 4.92 | I139: 54917.04
A140: 7.2 | D140: FORNECIMENTO - HIDROMECÂNICOS
A141: 7.2.1 | D141: TUBOS DE AÇO CARBONO DN=1200MM C/TRATAMENTO | E141: m | F141: 1837 | H141: 0 | I141: 0
A142: 7.2.2 | D142: CONEXÕES E PEÇAS ESPECIAIS DO SIFÃO SF02 | E142: VB | F142: 1 | H142: 0 | I142: 0
A143: 7.2.3 | D143: PROTEÇÃO CATÓDICA EM TUBULAÇÃO DE AÇO | E143: VB | F143: 1 | H143: 0 | I143: 0
A144: 7.3 | D144: MONTAGEM - HIDROMECÂNICOS
A145: 7.3.1 | D145: MONTAGEM TUBUL. E PECAS DE AÇO CARBONO DN=1200MM C/TESTE HIDROST. | E145: m | F145: 1837 | H145: 0 | I145: 0
A146: 8.0 | D146: CX DE VÁLVULA/VISITAS/ENVELOP./DESCARGA DE FUNDO (SIFÃO SF02) | F146: R$ | G146: 236701.604
A147: 8.1 | D147: OBRAS CIVIS
A148: 8.1.1 | B148: 74137/003 | C148: SINAPI | D148: CONCRETO USINADO, IMPORTADO, ESTRUTURAL FCK=20MPA INCLUS. TRANSPORTE HORIZONTAL ATÉ 20M (PROD. 2M3/H) EM CARRINHOS, ADENSAMENTO E ACABAMENTO | E148: m³ | F148: 266 | G148: 334.42 | H148: 394.62 | I148: 104968.92
A149: 8.1.2 | B149: 73936/011 | C149: sinapi | D149: CONCRETO 1:4:8, CONCRETO MAGRO, C/ BRITA 1 E 2, C/BETONEIRA | E149: m³ | F149: 19 | G149: 252.89 | H149: 298.41 | I149: 5669.79
B150: 00000031 | C150: SINAPI | D150: ACO CA-50 1/2" (12,70 MM) | E150: kg | F150: 7043 | G150: 3.94 | H150: 4.65 | I150: 32749.95
B151: 00000032 | C151: SINAPI | D151: ACO CA-50 1/4" (6,35 MM) | E151: kg | F151: 115 | G151: 4.57 | H151: 5.39 | I151: 619.85
B152: 00000034 | C152: SINAPI | D152: ACO CA-50 3/8" (9,52 MM) | E152: kg | F152: 6367 | G152: 4.06 | H152: 4.79 | I152: 30497.93
B153: 00000027 | C153: SINAPI | D153: ACO CA-50 5/8" (15,87 MM) | E153: kg | F153: 1026 | G153: 4 | H153: 4.72 | I153: 4842.72
A154: 8.1.4 | B154: 74075/001 | C154: SINAPI | D154: FORMA MADEIRA COMP RESINADA 12MM P/ESTRUTURA REAPROV 2 VEZES - CORTE/MONTAGEM/ESCORAMENTO/DESFORMA | E154: m² | F154: 608 | G154: 66.79 | H154: 78.81 | I154: 47916.48
A155: 8.1.5 | B155: C.P.U.020 | D155: ESCADA TIPO MERINHEIRO COM MONTANTES EM CHAPA 3/8" (9,53MM) E DEGRAUS EM TUBO DE AÇO 1 1/2" COM LARGURA DE 45CM E DISTANCIA EIXO A EIXO DE 30CM | E155: m | F155: 13 | G155: 143.344434 | H155: 169.15 | I155: 2198.95
A156: 8.1.6 | B156: 73998/006 | C156: sinapi | D156: ALVENARIA DE BLOCOS DE CONCRETO ESTRUTURAL 19X19X39CM, ESPESSURA 19CM, ASSENTADOS COM ARGAMASSA TRACO 1:0,25:4 (CIMENTO, CAL E AREIA) | E156: m² | F156: 36 | G156: 59.26 | H156: 69.93 | I156: 2517.48
A157: 8.1.7 | B157: 74199/001 | C157: sinapi | D157: CHAPISCO RUSTICO TRACO 1:3 (CIMENTO E AREIA), ESPESSURA 2CM, PREPARO MANUAL | E157: m² | F157: 36 | G157: 23.62 | H157: 27.87 | I157: 1003.32
A158: 8.1.8 | B158: 73927/006 | C158: SINAPI | D158: EMBOCO PAULISTA (MASSA UNICA) TRACO 1:1:6 (CIMENTO, CAL E AREIA), ESPESSURA 2,0CM, PREPARO MANUAL | E158: m² | F158: 36 | G158: 16.49 | H158: 19.46 | I158: 700.56
A159: 8.1.9 | B159: 73954/002 | C159: SINAPI | D159: PINTURA LATEX ACRILICA AMBIENTES INTERNOS/EXTERNOS, DUAS DEMAOS | E159: m² | F159: 36 | G159: 11.07 | H159: 13.06 | I159: 470.16
A160: 8.1.10 | B160: 79466 | C160: SINAPI | D160: PINTURA VERNIZ EM MADEIRA 2 DEMAOS | E160: m² | F160: 36 | G160: 7.34 | H160: 8.66 | I160: 311.76
A161: 8.1.11 | B161: 73922/003 | C161: SINAPI | D161: PISO CIMENTADO LISO DESEMPENADO, TRACO 1:3 (CIMENTO E AREIA), ESPESSURA 2,0CM, PREPARO MANUAL | E161: m² | F161: 25 | G161: 23.94 | H161: 28.25 | I161: 706.25 | K161: quant. | L161: largura | M161: altura | N161: área | O161: a.total
B162: C.P.U.019 | D162: JANELA METÁLICA, TIPO BASCULANTE 100x80cm COM TELA DE PROTEÇÃO CONTRA ROEDORES | E162: m² | F162: 0.8 | G162: 240.9175 | H162: 284.28 | I162: 227.424 | K162: 1 | L162: 1 | M162: 0.8 | N162: 0.8 | O162: 0.8
B163: 00004938 | C163: SINAPI | D163: PORTA METÁLICA 80x210cm | E163: unid | F163: 1 | G163: 319.2 | H163: 376.66 | I163: 376.66 | K163: 1 | L163: 0.8 | M163: 2.1 | N163: 1.68 | O163: 1.68
A164: 8.1.14 | B164: 73634 | C164: sinapi | D164: COBERTURA COM TELHA DE FIBROCIMENTO ESTRUTURAL LARGURA ÚTIL 49CM OU 44CM, INCLUSO ACESSÓRIOS DE FIXAÇÃO E VEDAÇÃO | E164: m² | F164: 9 | G164: 86.95 | H164: 102.6 | I164: 923.4
A165: 8.2 | D165: FORNECIMENTO - HIDROMECÂNICOS
A166: 8.2.1 | D166: VÁLVULA BORBOLETA C/ATUADOR ELÉTRICO DN=800MM PN-10 | E166: cj | F166: 1 | H166: 0 | I166: 0
A167: 8.2.2 | D167: VÁLV. GAVETA ACION. DIRETO VOLANTE, PN-10, DN= 150MM | E167: un | F167: 1 | H167: 0 | I167: 0
A168: 8.2.3 | D168: VÁLV. GAVETA ACION. DIRETO VOLANTE, PN-10, DN= 300MM | E168: un | F168: 1 | H168: 0 | I168: 0
A169: 8.2.4 | D169: JUNTA DE MONTAGEM, DN=800MMM | E169: un | F169: 1 | H169: 0 | I169: 0
A170: 8.2.5 | D170: JUNTA GIBAULT DN=300MM | E170: un | F170: 1 | H170: 0 | I170: 0
A171: 8.2.6 | D171: VISITA EM AÇO CARBONO | E171: kg | F171: 149 | H171: 0 | I171: 0
A172: 8.2.7 | D172: TUBO PVC RIGIDO, J/E, DEFOFO, DIAM 300MM | E172: m | F172: 300 | H172: 0 | I172: 0
A173: 8.2.8 | D173: VENTOSA DE TRÍPLICE FUNÇÃO, FOFO, DN=150MM | E173: un | F173: 1 | H173: 0 | I173: 0
A174: 8.2.9 | D174: EXTREMIDADE FO.FO., FLANGE E BOLSA, PN10, J.ELAST. DN=300MM | E174: un | F174: 1 | H174: 0 | I174: 0
A175: 8.3 | D175: MONTAGEM - HIDROMECÂNICOS
A176: 8.3.1 | D176: MONTAGEM DE VÁLVULA TIPO BORBOLETA DN=800MM C/ATUADOR | E176: un | F176: 1 | H176: 0 | I176: 0
A177: 8.3.2 | D177: MONT. TUBO PVC RIGIDO, J/E, DEFOFO, DIAM.300MM | E177: m | F177: 300 | H177: 0 | I177: 0
A178: 8.3.3 | D178: MONTAGEM DE VENTOSA DE TRIPLICE FUNÇÃO DN=150 | E178: un | F178: 1 | H178: 0 | I178: 0
A179: 8.3.4 | D179: MONTAGEM REGISTRO DE GAVETA COM FLANGES FO.FO. DN=150MM | E179: un | F179: 1 | H179: 0 | I179: 0
A180: 8.3.5 | D180: MONTAGEM REGISTRO DE GAVETA COM FLANGES FO.FO. DN=300MM | E180: un | F180: 1 | H180: 0 | I180: 0
A181: 9.0 | D181: ESTRUTURA DE SAÍDA DO SIFÃO SF02 | F181: R$ | G181: 37983.244
A182: 9.1 | D182: OBRAS CIVIS
A183: 9.1.1 | B183: 74137/003 | C183: SINAPI | D183: CONCRETO USINADO, IMPORTADO, ESTRUTURAL FCK=20MPA INCLUS. TRANSPORTE HORIZONTAL ATÉ 20M (PROD. 2M3/H) EM CARRINHOS, ADENSAMENTO E ACABAMENTO | E183: m³ | F183: 36 | G183: 334.42 | H183: 394.62 | I183: 14206.32
A184: 9.1.2 | B184: 73936/011 | C184: sinapi | D184: CONCRETO 1:4:8, CONCRETO MAGRO, C/ BRITA 1 E 2, C/BETONEIRA | E184: m³ | F184: 2 | G184: 252.89 | H184: 298.41 | I184: 596.82
B185: 00000031 | C185: SINAPI | D185: ACO CA-50 1/2" (12,70 MM) | E185: kg | F185: 495 | G185: 3.94 | H185: 4.65 | I185: 2301.75
B186: 00000032 | C186: SINAPI | D186: ACO CA-50 1/4" (6,35 MM) | E186: kg | F186: 123 | G186: 4.57 | H186: 5.39 | I186: 662.97
B187: 00000034 | C187: SINAPI | D187: ACO CA-50 3/8" (9,52 MM) | E187: kg | F187: 2262 | G187: 4.06 | H187: 4.79 | I187: 10834.98
A188: 9.1.4 | B188: 74075/001 | C188: SINAPI | D188: FORMA MADEIRA COMP RESINADA 12MM P/ESTRUTURA REAPROV 2 VEZES - CORTE/MONTAGEM/ESCORAMENTO/DESFORMA | E188: m² | F188: 95 | G188: 66.79 | H188: 78.81 | I188: 7486.95
A189: 9.1.5 | B189: 73685 | C189: sinapi | D189: CIMBRAMENTO DE MADEIRA | E189: m³ | F189: 5 | G189: 25.95 | H189: 30.62 | I189: 153.1
A190: 9.1.6 | B190: 73631 | C190: sinapi | D190: GUARDA-CORPO EM TUBO DE ACO GALVANIZADO 1 1/2" | E190: m² | F190: 7.7 | G190: 191.54 | H190: 226.02 | I190: 1740.354
A191: 9.2 | D191: FORNECIMENTO - HIDROMECÂNICOS
A192: 9.2.1 | D192: TALHA MANUAL C/MONOVIA CAP=1 TON - COMPLETA | E192: un | F192: 1 | H192: 0 | I192: 0
A193: 9.3 | D193: MONTAGEM - HIDROMECÂNICOS
A194: 9.3.1 | D194: MONTAGEM DE TALHA MANUAL C/MONOVIA CAP=1,0TON | E194: un | F194: 1 | H194: 0 | I194: 0
A195: 10.0 | D195: ESTAÇÃO DE BOMBEAMENTO - EB05 (C/SUBESTAÇÃO) | F195: R$ | G195: 499616.722
A196: 10.1 | D196: OBRAS CIVIS
A197: 10.1.1 | B197: 73859/001 | C197: SINAPI | D197: DESMATAMENTO/LIMPEZA TERRENOS C/EQUIP MECAN(TRATOR:1000M2/H) | E197: m² | F197: 2510 | G197: 0.21 | H197: 0.25 | I197: 627.5
A198: 10.1.2 | B198: 73964/005 | C198: SINAPI | D198: REATERRO DE VALA/CAVA SEM CONTROLE DE COMPACTAÇÃO , UTILIZANDO RETRO-ESCAVADEIRA E COMPACTACADOR VIBRATORIO COM MATERIAL REAPROVEITADO | E198: m³ | F198: 904 | G198: 6.02 | H198: 7.1 | I198: 6418.4
B199: C.P.U.005 | D199: ESCAV MEC.VALA N ESCORADA, MAT 1A, PROF. DE 1,5 A 3M, C/T ATE 200m | E199: m³ | F199: 881 | G199: 14.52 | H199: 17.13 | I199: 15091.53
A200: 10.1.4 | B200: 2 S 01 101 26 | C200: SICRO | D200: ESC. MEC. CARGA TRANSP. MAT 2A CAT DMT 800 A 1000M C/E | E200: m³ | F200: 271 | G200: 7.5 | H200: 8.85 | I200: 2398.35
... 313 more rows
